Department,Entity,Posted Date,Internal Voucher Number,Invoice Line Amount Net GBP,Supplier Name,Account Code
FCO,FCO,19/11/2018,9875584,285612185.4,HOME OFFICE,UKBA Visa Income Creditor Control
FCO,FCO,12/11/2018,9863127,21000000,THE BRITISH COUNCIL,Programme Spend (Oracle Projects Control Account)
FCO,FCO,02/11/2018,9848759,16000000,THE ASSOCIATION OF COMMONWEALTH UNIVERSITIES,Programme Spend (Oracle Projects Control Account)
FCO,FCO,29/11/2018,9897342,9161905.28,NATO INTERNATIONAL STAFF,Programme Spend (Oracle Projects Control Account)
FCO,FCO,14/11/2018,9867656,6923144,BBC BRITISH BROADCASTING CORPORATION,Programme Spend (Oracle Projects Control Account)
FCO,FCO,26/11/2018,9887897,4000000,UNDP MULTI PARTNER TRUST FUND OFFICE,Programme Spend (Oracle Projects Control Account)
FCO,FCO,05/11/2018,9851016,3807121,MAYDAY RESCUE,Programme Spend (Oracle Projects Control Account)
FCO,FCO,28/11/2018,9894400,3680979.5,UNITED NATIONS,Programme Spend (Oracle Projects Control Account)
FCO,FCO,13/11/2018,9865163,2986359.4,HMRC HM REVENUE AND CUSTOMS,Multiple Accounts
FCO,FCO,01/11/2018,9870898,2876138.66,THE ROYAL BANK OF SCOTLAND,Corporate Credit Card Clearing Account
FCO,FCO,14/11/2018,9868001,2850000,ISS FACILITY SERVICES LTD FCO OP - POE,FMCU POE Trust Account Debtor
FCO,FCO,01/11/2018,9836767,2500000,UNITED NATIONS,Programme Spend (Oracle Projects Control Account)
FCO,FCO,01/11/2018,9878512,2300483.67,THE ROYAL BANK OF SCOTLAND,GPC Clearing Account
FCO,FCO,02/11/2018,9848784,1963759.71,CE EUROPEAN DEVELOP FUND,Programme Spend (Oracle Projects Control Account)
FCO,FCO,15/11/2018,9870732,1675897.58,FCO SERVICES,IT Support
FCO,FCO,06/11/2018,9852803,1577841.49,GRAY ROBINSON PA,Assets Under Construction (Oracle PA Control Account)
FCO,FCO,27/11/2018,9892208,1573774.25,UNITED NATIONS,Programme Spend (Oracle Projects Control Account)
FCO,FCO,08/11/2018,9856717,1433872.07,EUROPEAN BANK FOR RECONSTRUCTION AND DEVELOPMENT,Protocol - General VAT Refunds to Other Organisations
FCO,FCO,22/11/2018,9883518,1303316.53,G4S RISK MANAGEMENT LTD,UK Guarding Contracts Overseas
FCO,FCO,12/11/2018,9863064,1205000,BIOT REVENUE ACCOUNT,Programme Spend (Oracle Projects Control Account)
FCO,FCO,01/11/2018,9867675,1195440.66,THE ROYAL BANK OF SCOTLAND,Travel Package Advance Overseas Posting (Credit Card Payments Only)
FCO,FCO,13/11/2018,9865051,1162056.75,FCO SERVICES,Residential Property Services
FCO,FCO,13/11/2018,9865194,1159082.66,CABINET OFFICE,Multiple Accounts
FCO,FCO,07/11/2018,9854475,1084317.12,GARDA WORLD LTD,UK Mobile Guarding Contract overseas
FCO,FCO,02/11/2018,9849131,1002677.85,SPECIAL TRIBUNAL FOR LEBANON,Programme Spend (Oracle Projects Control Account)
FCO,FCO,14/11/2018,9867295,990721.83,BRUMMERIA PROPERTIES LTD,Rental Payments - residential
FCO,FCO,27/11/2018,9892119,937338.53,FCO SERVICES,Residential Property Services
FCO,FCO,29/11/2018,9897182,916028,MOD MINISTRY OF DEFENCE,Programme Spend (Oracle Projects Control Account)
FCO,FCO,13/11/2018,9865049,826548.99,FCO SERVICES,Residential Property Services
FCO,FCO,16/11/2018,9872604,800000,UNITED NATIONS,Programme Spend (Oracle Projects Control Account)
FCO,FCO,15/11/2018,9870861,785075,OECD,Programme Spend (Oracle Projects Control Account)
FCO,FCO,20/11/2018,9878427,780959.08,UNOPS,Programme Spend (Oracle Projects Control Account)
FCO,FCO,13/11/2018,9865543,758855.03,ADAM SMITH INTERNATIONAL,Programme Spend (Oracle Projects Control Account)
FCO,FCO,16/11/2018,9872569,726573,MERCY CORPS,Programme Spend (Oracle Projects Control Account)
FCO,FCO,27/11/2018,9892145,713442.73,COMPUTACENTER UK LTD,IT Networking
FCO,FCO,02/11/2018,9848820,704475,SAFELANE GLOBAL LIMITED,Programme Spend (Oracle Projects Control Account)
FCO,FCO,30/11/2018,9898722,631904.13,DEPARTMENT FOR TRANSPORT,Programme Spend (Oracle Projects Control Account)
FCO,FCO,29/11/2018,9897214,631029.6,FCO SERVICES,Construction Project more than 10k
FCO,FCO,08/11/2018,9856722,627558.83,EUROPEAN MOLECULAR BIOLOGY LABORATORY,Protocol - General VAT Refunds to Other Organisations
FCO,FCO,22/11/2018,9883141,624920.86,UNDP CONTRIBUTIONS,Programme Spend (Oracle Projects Control Account)
FCO,FCO,12/11/2018,9862999,604774.4,JANKEL ARMOURING LTD,Assets Under Construction (Oracle PA Control Account)
FCO,FCO,22/11/2018,9883262,578882.61,G4S RISK MANAGEMENT LTD,UK Guarding Contracts Overseas
FCO,FCO,16/11/2018,9872746,573947.71,ARK GROUP DMCC,Programme Spend (Oracle Projects Control Account)
FCO,FCO,08/11/2018,9856720,572552,EUROPEAN CENTRE FOR MEDIUM RANGE WEATHER FORECASTS,Protocol - General VAT Refunds to Other Organisations
FCO,FCO,08/11/2018,9856798,560082,NORWEGIAN REFUGEE COUNCIL,Programme Spend (Oracle Projects Control Account)
FCO,FCO,12/11/2018,9862979,554255.86,RISK ADVISORY GROUP PLC,Programme Spend (Oracle Projects Control Account)
FCO,FCO,15/11/2018,9870537,548100,THE INSTITUTE FOR STATECRAFT,Programme Spend (Oracle Projects Control Account)
FCO,FCO,07/11/2018,9854445,547378.69,ARK GROUP DMCC,Programme Spend (Oracle Projects Control Account)
FCO,FCO,29/11/2018,9897341,490197.63,ATHENA TREASURY,Programme Spend (Oracle Projects Control Account)
FCO,FCO,13/11/2018,9865129,465945,FCO SERVICES,Assets Under Construction (Oracle PA Control Account)
FCO,FCO,21/11/2018,9880559,458588.37,ADAM SMITH INTERNATIONAL,Programme Spend (Oracle Projects Control Account)
FCO,FCO,07/11/2018,9854703,452145.9,M INTEGRATED SOLUTIONS,Inward visits to the UK and UK Conferences
FCO,FCO,12/11/2018,9863018,439145.78,AECOM,Programme Spend (Oracle Projects Control Account)
FCO,FCO,28/11/2018,9894365,430407,CITY OF WESTMINSTER,Rates Taxes Non-Residential
FCO,FCO,27/11/2018,9892209,403692.56,UNITED NATIONS,Programme Spend (Oracle Projects Control Account)
FCO,FCO,13/11/2018,9865126,396815,FCO SERVICES,Assets Under Construction (Oracle PA Control Account)
FCO,FCO,15/11/2018,9870773,393571.38,NI CO OPERATION OVERSEAS NI CO LTD,Programme Spend (Oracle Projects Control Account)
FCO,FCO,26/11/2018,9888159,380029,FCO SERVICES,Assets Under Construction (Oracle PA Control Account)
FCO,FCO,19/11/2018,9875318,375018.37,FIEDLER AND RANDEL STEUERBERATER,Le Staff Pay
FCO,FCO,13/11/2018,9865169,363324.66,HYDROGRAPHIC OFFICE,Programme Spend (Oracle Projects Control Account)
FCO,FCO,08/11/2018,9856848,362674.88,AECOM,Assets Under Construction (Oracle PA Control Account)
FCO,FCO,14/11/2018,9867598,341325.6,ARK GROUP DMCC,Programme Spend (Oracle Projects Control Account)
FCO,FCO,02/11/2018,9848760,333135.83,THE ASSOCIATION OF COMMONWEALTH UNIVERSITIES,Programme Spend (Oracle Projects Control Account)
FCO,FCO,15/11/2018,9870768,331185.09,AKTIS STRATEGY,Programme Spend (Oracle Projects Control Account)
FCO,FCO,20/11/2018,9878158,310956.18,AKTIS STRATEGY,Programme Spend (Oracle Projects Control Account)
FCO,FCO,27/11/2018,9891798,309191.5,ATLANTIC COUNCIL DIGITAL FORENSIC RESEARCH LAB,Programme Spend (Oracle Projects Control Account)
FCO,FCO,28/11/2018,9894427,306246.99,COFFEY INTERNATIONAL DEVELOPMENT,Programme Spend (Oracle Projects Control Account)
FCO,FCO,09/11/2018,9859237,300515.32,LONDON ENERGY,Electricity Non-Residential
FCO,FCO,21/11/2018,9880565,300350.56,CABINET OFFICE,Programme Spend (Oracle Projects Control Account)
FCO,FCO,19/11/2018,9875861,300075.66,BAE SYSTEMS APPLIED INTELLIGENCE LIMITED,IT Management and Change
FCO,FCO,06/11/2018,9853212,300000,UNITED NATIONS,Programme Spend (Oracle Projects Control Account)
FCO,FCO,08/11/2018,9856835,293779.23,COMPUTACENTER UK LTD,Assets Under Construction (Oracle PA Control Account)
FCO,FCO,27/11/2018,9892314,288320.09,OSCE PARLIAMENTARY ASSEMBLY,Programme Spend (Oracle Projects Control Account)
FCO,FCO,29/11/2018,9897403,287497.45,BVI RECOVERY AND DEVELOPMENT AGENCY,Programme Spend (Oracle Projects Control Account)
FCO,FCO,27/11/2018,9891726,286460.38,AKTIS STRATEGY,Programme Spend (Oracle Projects Control Account)
FCO,FCO,26/11/2018,9888153,267883.08,COFFEY INTERNATIONAL DEVELOPMENT,Programme Spend (Oracle Projects Control Account)
FCO,FCO,27/11/2018,9891756,267022.46,GARDA WORLD LTD,UK Guarding Contracts Overseas
FCO,FCO,21/11/2018,9880669,266367.07,FCO SERVICES,Air Freight Dip Bags - Freight & Clearance Charges
FCO,FCO,13/11/2018,9864917,266039,INTERNATIONAL ALERT,Programme Spend (Oracle Projects Control Account)
FCO,FCO,02/11/2018,9849186,264627,ORGANISATION FOR ECONOMIC CO OPERATION AND DEVELOPMENT OECD,Programme Spend (Oracle Projects Control Account)
FCO,FCO,29/11/2018,9897425,264612.1,PLAZA TOWER LLC,Rental Payments - non residential
FCO,FCO,01/11/2018,9846900,262324,THE HALO TRUST,Programme Spend (Oracle Projects Control Account)
FCO,FCO,15/11/2018,9870469,258723,COMMONWEALTH SECRETARIAT,Programme Spend (Oracle Projects Control Account)
FCO,FCO,09/11/2018,9859093,258658,CHARITIES AID FOUNDATION CAF RUSSIA,Programme Spend (Oracle Projects Control Account)
FCO,FCO,22/11/2018,9883754,256649.12,845 THIRD LP,Rental Payments - non residential
FCO,FCO,20/11/2018,9878314,252554,GILBERT ASH LIMITED,Assets Under Construction (Oracle PA Control Account)
FCO,FCO,19/11/2018,9875988,250043.44,SECUREX AGENCIES LTD,Staff and Other Advances AP Control (Oracle Ap Control Account)
FCO,FCO,08/11/2018,9856793,250000,COUNCIL OF EUROPE,Programme Spend (Oracle Projects Control Account)
FCO,FCO,21/11/2018,9880576,250000,UNDP CONTRIBUTIONS,Programme Spend (Oracle Projects Control Account)
FCO,FCO,16/11/2018,9872126,249933.05,EXPERTISE FRANCE,Programme Spend (Oracle Projects Control Account)
FCO,FCO,27/11/2018,9892137,245998.75,ACCENTURE (UK) LTD,IT Management and Change
FCO,FCO,05/11/2018,9850524,243383.09,THE BRITISH COUNCIL,Programme Spend (Oracle Projects Control Account)
FCO,FCO,14/11/2018,9867830,240000,UNITED NATIONS,Programme Spend (Oracle Projects Control Account)
FCO,FCO,07/11/2018,9854580,239330,VODAFONE LTD,Assets Under Construction (Oracle PA Control Account)
FCO,FCO,07/11/2018,9854584,239330,VODAFONE LTD,Assets Under Construction (Oracle PA Control Account)
FCO,FCO,13/11/2018,9865705,239330,VODAFONE LTD,Assets Under Construction (Oracle PA Control Account)
FCO,FCO,06/11/2018,9852811,235512.38,SECURITY SERVICES GROUP,Site Maintenance
FCO,FCO,02/11/2018,9848829,234376.32,THE HALO TRUST,Programme Spend (Oracle Projects Control Account)
FCO,FCO,30/11/2018,9898845,232989.66,PRAGUE CIVIL SOCIETY CENTRE,Programme Spend (Oracle Projects Control Account)
FCO,FCO,30/11/2018,9898786,230376.11,COFFEY INTERNATIONAL DEVELOPMENT,Programme Spend (Oracle Projects Control Account)
FCO,FCO,14/11/2018,9867945,230311.09,CABINET OFFICE,Early Retirement Costs (Pre VES)
FCO,FCO,14/11/2018,9867574,228958,INTERNATIONAL IDEA,Programme Spend (Oracle Projects Control Account)
FCO,FCO,27/11/2018,9891764,223260.59,AXIOM INTERNATIONAL LTD,Programme Spend (Oracle Projects Control Account)
FCO,FCO,26/11/2018,9888142,220202.55,FCO SERVICES,IT Hosting
FCO,FCO,16/11/2018,9872686,217846.53,OVERSEAS SUPPLY SERVICES LTD,Estates Management Services
FCO,FCO,28/11/2018,9894351,217039,MILTON KEYNES COUNCIL,Rates Taxes Non-Residential
FCO,FCO,29/11/2018,9897151,216965,NORTH HIGHLAND UK LTD,Specialist Contractors
FCO,FCO,09/11/2018,9859038,216000,COFFEY INTERNATIONAL DEVELOPMENT,Programme Spend (Oracle Projects Control Account)
FCO,FCO,15/11/2018,9870852,214919.63,DEFENCE BUSINESS SERVICES FINANCE,Mod Guarding Services Residential
FCO,FCO,12/11/2018,9863133,214620.82,RISK ADVISORY GROUP PLC,Programme Spend (Oracle Projects Control Account)
FCO,FCO,29/11/2018,9897223,213293.79,FCO SERVICES,Construction Project more than 10k
FCO,FCO,06/11/2018,9852842,210861,GREENSHIELDS COWIE + CO LTD,Freight & Customs Clearance Charges
FCO,FCO,02/11/2018,9848958,207964.78,SENSETECH SYSTEMS,Assets Under Construction (Oracle PA Control Account)
FCO,FCO,05/11/2018,9850918,207290,OSCE ORG SECURITY COOPORATION EUROPE,Programme Spend (Oracle Projects Control Account)
FCO,FCO,13/11/2018,9865162,205816.28,AKTIS STRATEGY,Programme Spend (Oracle Projects Control Account)
FCO,FCO,14/11/2018,9867660,204638.95,FCO SERVICES,Construction Project more than 10k
FCO,FCO,02/11/2018,9848529,203713,PACIFIC COMMUNITY,Programme Spend (Oracle Projects Control Account)
FCO,FCO,27/11/2018,9891716,202863,DANISH REFUGEE COUNCIL,Programme Spend (Oracle Projects Control Account)
FCO,FCO,29/11/2018,9897667,202768.13,THE ROYAL BANK OF SCOTLAND,Multiple Accounts
FCO,FCO,29/11/2018,9897260,200000,COMMONWEALTH SECRETARIAT,Programme Spend (Oracle Projects Control Account)
FCO,FCO,28/11/2018,9894344,197046,THE BRITISH COUNCIL,Programme Spend (Oracle Projects Control Account)
FCO,FCO,30/11/2018,9898894,196655.83,CENTER FOR ADVANCED DEFENSE STUDIES,Programme Spend (Oracle Projects Control Account)
FCO,FCO,14/11/2018,9867566,193104.25,INTER MEDIATE,Programme Spend (Oracle Projects Control Account)
FCO,FCO,20/11/2018,9878295,191426.76,STOPFAKE THE MEDIA REFORMS CENTRE,Programme Spend (Oracle Projects Control Account)
FCO,FCO,20/11/2018,9877535,189838.31,ISS FACILITY SERVICES LTD FCO OP - POE,Rental Payments - residential
FCO,FCO,20/11/2018,9878300,188274.78,CONCEPT BUILDING SERVICES SOUTHERN LTD,Assets Under Construction (Oracle PA Control Account)
FCO,FCO,02/11/2018,9848786,187993.19,FCO SERVICES,Assets Under Construction (Oracle PA Control Account)
FCO,FCO,08/11/2018,9856796,187695.23,EUROPEAN BANKING AUTHORITY,Protocol - General VAT Refunds to Other Organisations
FCO,FCO,26/11/2018,9887919,187235.82,CAPGEMINI UK PLC,IT Support
FCO,FCO,19/11/2018,9875698,186237.12,DFID DEPT INTERNATIONAL DEVELOPMENT,Programme Spend (Oracle Projects Control Account)
FCO,FCO,26/11/2018,9888133,179140.36,COMPUTACENTER UK LTD,Assets Under Construction (Oracle PA Control Account)
FCO,FCO,27/11/2018,9891976,178370.1,FCO SERVICES,Specialist Contractors
FCO,FCO,21/11/2018,9880710,177938.97,DEPARTMENT OF FOREIGN AFFAIRS AND TRADE AUSTRALIA,Assets Under Construction (Oracle PA Control Account)
FCO,FCO,23/11/2018,9885168,177908,VISIT BRITAIN,Programme Spend (Oracle Projects Control Account)
FCO,FCO,30/11/2018,9898717,176854.57,DEPARTMENT FOR TRANSPORT,Programme Spend (Oracle Projects Control Account)
FCO,FCO,01/11/2018,9847014,176445.16,COMPUTACENTER UK LTD,IT Management and Change
FCO,FCO,02/11/2018,9848993,176253.68,CONCEPT BUILDING SERVICES SOUTHERN LTD,Assets Under Construction (Oracle PA Control Account)
FCO,FCO,22/11/2018,9883442,174303,BARTON ENGINEERING AND EXPORT,Assets Under Construction (Oracle PA Control Account)
FCO,FCO,30/11/2018,9898899,173000,UNITED NATIONS,Programme Spend (Oracle Projects Control Account)
FCO,FCO,20/11/2018,9878000,170193.52,COFFEY INTERNATIONAL DEVELOPMENT,Programme Spend (Oracle Projects Control Account)
FCO,FCO,21/11/2018,9880547,167996,DAI EUROPE LIMITED,Programme Spend (Oracle Projects Control Account)
FCO,FCO,29/11/2018,9897217,166524.28,FCO SERVICES,Construction Project more than 10k
FCO,FCO,28/11/2018,9894339,162657.46,GOVERNMENT LEGAL DEPARTMENT,Legal Charges
FCO,FCO,20/11/2018,9877542,161423.68,ISS FACILITY SERVICES LTD FCO OP - POE,Multiple Accounts
FCO,FCO,02/11/2018,9849030,160417.8,COMPUTACENTER UK LTD,Assets Under Construction (Oracle PA Control Account)
FCO,FCO,27/11/2018,9892333,159049.33,TORRE ESPACIO CASTELLANA SAU,Rental Payments - non residential
FCO,FCO,05/11/2018,9851255,157303.64,COMPUTACENTER UK LTD,Assets Under Construction (Oracle PA Control Account)
FCO,FCO,19/11/2018,9875447,154004,THE ASIA FOUNDATION,Programme Spend (Oracle Projects Control Account)
FCO,FCO,13/11/2018,9865125,153321.6,FCO SERVICES,Assets Under Construction (Oracle PA Control Account)
FCO,FCO,19/11/2018,9875736,153115,UNITED NATIONS,Programme Spend (Oracle Projects Control Account)
FCO,FCO,28/11/2018,9894443,153048.48,THE ROYAL BANK OF SCOTLAND,Accommodation
FCO,FCO,26/11/2018,9888178,152826,FCO SERVICES,IT/IS Consultancy
FCO,FCO,02/11/2018,9849187,150000,BBC WORLD SERVICE TRUST,Programme Spend (Oracle Projects Control Account)
FCO,FCO,12/11/2018,9862993,149969.1,ARK GROUP DMCC,Programme Spend (Oracle Projects Control Account)
FCO,FCO,06/11/2018,9852958,149532.23,OVERSEAS SUPPLY SERVICES LTD,Estates Management Services
FCO,FCO,07/11/2018,9854478,147997.72,GARDA WORLD LTD,UK Mobile Guarding Contract overseas
FCO,FCO,22/11/2018,9883735,147910.04,THE GLOBAL STRATEGY NETWORK,Programme Spend (Oracle Projects Control Account)
FCO,FCO,15/11/2018,9869878,147193.83,CLICKSUPER,Le Staff Pay
FCO,FCO,15/11/2018,9870857,143841,Optima Defence and Security Group Ltd,Recharge Suspense Account (Oracle PA Control Account)
FCO,FCO,12/11/2018,9862983,140482.36,RISK ADVISORY GROUP PLC,Programme Spend (Oracle Projects Control Account)
FCO,FCO,14/11/2018,9867631,140303.85,Babcock Vehicle Engineering Ltd,Assets Under Construction (Oracle PA Control Account)
FCO,FCO,14/11/2018,9867640,140303.85,Babcock Vehicle Engineering Ltd,Assets Under Construction (Oracle PA Control Account)
FCO,FCO,14/11/2018,9867643,140303.85,Babcock Vehicle Engineering Ltd,Assets Under Construction (Oracle PA Control Account)
FCO,FCO,06/11/2018,9853111,139128.52,CATHOLIC RELIEF SERVICES,Programme Spend (Oracle Projects Control Account)
FCO,FCO,20/11/2018,9877527,138535.83,ISS FACILITY SERVICES LTD FCO OP - POE,Multiple Accounts
FCO,FCO,14/11/2018,9867888,136223.56,RA INITERNATIONAL,Programme Spend (Oracle Projects Control Account)
FCO,FCO,15/11/2018,9870839,134922.5,NORTH HIGHLAND UK LTD,Specialist Contractors
FCO,FCO,12/11/2018,9863058,134743.56,GILBERT ASH LIMITED,Assets Under Construction (Oracle PA Control Account)
FCO,FCO,22/11/2018,9883232,134582.07,DAI EUROPE LIMITED,Programme Spend (Oracle Projects Control Account)
FCO,FCO,05/11/2018,9878512,134559.26,THE ROYAL BANK OF SCOTLAND,GPC Clearing Account
FCO,FCO,30/11/2018,9898657,133966,HENRY DUNANT CENTRE FOR HUMANITARIAN DIALOGUE,Programme Spend (Oracle Projects Control Account)
FCO,FCO,16/11/2018,9872715,132121.53,FCO SERVICES,IT Hosting
FCO,FCO,22/11/2018,9883732,131755.08,THE GLOBAL STRATEGY NETWORK,Programme Spend (Oracle Projects Control Account)
FCO,FCO,15/11/2018,9870738,131581.61,FCO SERVICES,IT Support
FCO,FCO,21/11/2018,9880611,130794.81,FCO SERVICES,Air Freight Dip Bags - Freight & Clearance Charges
FCO,FCO,26/11/2018,9888375,130539.97,KPMG FIDUCIAIRE,Rental Payments - residential
FCO,FCO,30/11/2018,9898848,129981,ATKINS LTD,Estates Management Services
FCO,FCO,27/11/2018,9891750,126677.55,BBC MEDIA ACTION,Programme Spend (Oracle Projects Control Account)
FCO,FCO,01/11/2018,9847230,126263,AXIOM INTERNATIONAL LTD,Programme Spend (Oracle Projects Control Account)
FCO,FCO,13/11/2018,9864632,124420.71,ACCOMMODATION PROVIDER,Recharge Suspense Account (Oracle PA Control Account)
FCO,FCO,05/11/2018,9851120,120971.99,STRATAGEM CONSULTING,Programme Spend (Oracle Projects Control Account)
FCO,FCO,30/11/2018,9898740,120479.5,FCO SERVICES,Repairs And Refurbishment: Works Residential
FCO,FCO,20/11/2018,9878255,120000,TRANSPORT SYSTEMS CATAPULT SERVICES LIMITED,Programme Spend (Oracle Projects Control Account)
FCO,FCO,22/11/2018,9883499,119548,SERCO LIMITED,Programme Spend (Oracle Projects Control Account)
FCO,FCO,30/11/2018,9898805,119505.94,STRATAGEM CONSULTING,Programme Spend (Oracle Projects Control Account)
FCO,FCO,26/11/2018,9887834,119154.93,WYG GROUP,Programme Spend (Oracle Projects Control Account)
FCO,FCO,05/11/2018,9850940,118849,PEACEFUL CHANGE INITIATIVE,Programme Spend (Oracle Projects Control Account)
FCO,FCO,12/11/2018,9862995,118400.24,ARK GROUP DMCC,Programme Spend (Oracle Projects Control Account)
FCO,FCO,12/11/2018,9863049,118244.55,TORCHLIGHT SOLUTIONS LTD,Programme Spend (Oracle Projects Control Account)
FCO,FCO,16/11/2018,9872645,118167.67,FCO SERVICES,Construction Project more than 10k
FCO,FCO,13/11/2018,9864994,117688.82,UNDP CONTRIBUTIONS,Programme Spend (Oracle Projects Control Account)
FCO,FCO,15/11/2018,9870838,116467.94,MICROSOFT LIMITED,Assets Under Construction (Oracle PA Control Account)
FCO,FCO,15/11/2018,9869399,116187.56,MOZILLA TRANSPORTATION SERVICES,Recharge Suspense Account (Oracle PA Control Account)
FCO,FCO,16/11/2018,9872627,115376.66,JOHN SMITH MEMORIAL TRUST,Programme Spend (Oracle Projects Control Account)
FCO,FCO,20/11/2018,9877808,115107.76,INTERSERVE FM LTD,Multiple Accounts
FCO,FCO,12/11/2018,9863082,114416.84,GOVERNMENT LEGAL DEPARTMENT,Legal Charges
FCO,FCO,27/11/2018,9891719,114393.52,ADAM SMITH INTERNATIONAL,Programme Spend (Oracle Projects Control Account)
FCO,FCO,06/11/2018,9878512,114347,THE ROYAL BANK OF SCOTLAND,GPC Clearing Account
FCO,FCO,06/11/2018,9852845,112738.75,DEPARTMENT FOR EDUCATION,Rental Payments - non residential
FCO,FCO,13/11/2018,9864694,111054.66,BMATT,Recharge Suspense Account (Oracle PA Control Account)
FCO,FCO,15/11/2018,9870505,110825,BRITISH COUNCIL ALGERIA,Programme Spend (Oracle Projects Control Account)
FCO,FCO,09/11/2018,9859457,110700,VODAFONE LTD,Assets Under Construction (Oracle PA Control Account)
FCO,FCO,06/11/2018,9853085,110524.91,HEALIX INTERNATIONAL LTD,FCO Healthcare Scheme
FCO,FCO,27/11/2018,9892188,110079,DEFENCE BUSINESS SERVICES FINANCE,Misc Security Payments
FCO,FCO,16/11/2018,9872591,109980.08,COMPUTACENTER UK LTD,Assets Under Construction (Oracle PA Control Account)
FCO,FCO,23/11/2018,9885447,109786.44,AECOM,Programme Spend (Oracle Projects Control Account)
FCO,FCO,14/11/2018,9867298,109000.53,BRUMMERIA PROPERTIES LTD,Rental Payments - residential
FCO,FCO,12/11/2018,9863110,108026.42,OSCE ORG SECURITY COOPORATION EUROPE,Programme Spend (Oracle Projects Control Account)
FCO,FCO,05/11/2018,9850969,107631.25,FCO SERVICES,Misc Expenditure (only to be used if no other suitable account)
FCO,FCO,26/11/2018,9887935,106911.36,AXIOM INTERNATIONAL LTD,Programme Spend (Oracle Projects Control Account)
FCO,FCO,07/11/2018,9854361,106026.77,AFRICAN SKIES LTD,Local Guards
FCO,FCO,14/11/2018,9867956,105413.56,SPREP USD WORKING ACCOUNT,Programme Spend (Oracle Projects Control Account)
FCO,FCO,29/11/2018,9896914,104632,THE ASIA FOUNDATION,Programme Spend (Oracle Projects Control Account)
FCO,FCO,16/11/2018,9872556,104236.15,GILBERT ASH LIMITED,Assets Under Construction (Oracle PA Control Account)
FCO,FCO,07/11/2018,9878512,103879.23,THE ROYAL BANK OF SCOTLAND,GPC Clearing Account
FCO,FCO,20/11/2018,9878285,103482.41,BAE SYSTEMS APPLIED INTELLIGENCE LIMITED,Information Systems Maintenance DO NOT USE
FCO,FCO,07/11/2018,9854656,103161.83,MINIMAL RISK CONSULTANCY LTD,UK Guarding Contracts Overseas
FCO,FCO,27/11/2018,9891801,102790,POWER ELECTRICS GENERATORS LTD,Assets Under Construction (Oracle PA Control Account)
FCO,FCO,26/11/2018,9888117,102515.23,MINIMAL RISK CONSULTANCY LTD,UK Guarding Contracts Overseas
FCO,FCO,02/11/2018,9848825,100000,EUROPEAN ENDOWMENT FOR DEMOCRACY,Programme Spend (Oracle Projects Control Account)
FCO,FCO,16/11/2018,9872687,100000,SECURITY SERVICES GROUP,Assets Under Construction (Oracle PA Control Account)
FCO,FCO,20/11/2018,9878313,99940.63,AECOM,Programme Spend (Oracle Projects Control Account)
FCO,FCO,12/11/2018,9863004,99472.14,ITAD LTD,Programme Spend (Oracle Projects Control Account)
FCO,FCO,28/11/2018,9894590,98187.99,IRISH LIFE,Le Staff Pay
FCO,FCO,08/11/2018,9856712,97676,THE HALO TRUST,Programme Spend (Oracle Projects Control Account)
FCO,FCO,06/11/2018,9852837,97196,HEALTH EDUCATION ENGLAND,Programme Spend (Oracle Projects Control Account)
FCO,FCO,19/11/2018,9875771,96470.64,BAE SYSTEMS APPLIED INTELLIGENCE LIMITED,IT Management and Change
FCO,FCO,14/11/2018,9868116,96266.73,AECOM,Programme Spend (Oracle Projects Control Account)
FCO,FCO,05/11/2018,9851152,95371.02,DEUTSCHER LEVANTE VERLAG GMBH,Programme Spend (Oracle Projects Control Account)
FCO,FCO,13/11/2018,9865435,95070.04,PICKFORDS MOVE MANAGEMENT LTD,Heavy Baggage
FCO,FCO,19/11/2018,9875868,94771.8,JOURNALISM DEVELOPMENT NETWORK,Programme Spend (Oracle Projects Control Account)
FCO,FCO,29/11/2018,9896939,94383,CONCILIATION RESOURCES,Programme Spend (Oracle Projects Control Account)
FCO,FCO,29/11/2018,9896943,94151.43,PALLADIUM,Programme Spend (Oracle Projects Control Account)
FCO,FCO,02/11/2018,9878512,93983.93,THE ROYAL BANK OF SCOTLAND,GPC Clearing Account
FCO,FCO,06/11/2018,9853093,93084,DEFENCE BUSINESS SERVICES FINANCE,Misc Security Payments
FCO,FCO,08/11/2018,9856934,93084,DEFENCE BUSINESS SERVICES FINANCE,Misc Security Payments
FCO,FCO,21/11/2018,9880536,92995.37,KOIZA INTERNATIONAL LTD,"Purchase of Furniture, Fittings and Domestic Appliances"
FCO,FCO,13/11/2018,9864980,92822.01,ISS FACILITY SERVICES LTD FCO OP,FM Interserve BES Maintenance
FCO,FCO,09/11/2018,9859408,92000,IOM INTERNATIONAL ORG FOR MIGRATION,Programme Spend (Oracle Projects Control Account)
FCO,FCO,22/11/2018,9883439,91000,PEACEFUL CHANGE INITIATIVE,Programme Spend (Oracle Projects Control Account)
FCO,FCO,12/11/2018,9863099,89314,CARNEGIE ENDOWNMENT FOR INTERNATIONAL PEACE,Programme Spend (Oracle Projects Control Account)
FCO,FCO,15/11/2018,9870784,88824.26,NI CO OPERATION OVERSEAS NI CO LTD,Programme Spend (Oracle Projects Control Account)
FCO,FCO,20/11/2018,9878227,88672.85,SYNERGY CONSULTANCY LTD,Programme Spend (Oracle Projects Control Account)
FCO,FCO,29/11/2018,9897333,88211.45,INDEPENDENT DIPLOMATS,Programme Spend (Oracle Projects Control Account)
FCO,FCO,06/11/2018,9852927,87867.03,AEGIS DEFENCE SERVICES LTD,Multiple Accounts
FCO,FCO,30/11/2018,9898734,87551.8,SECURITY SERVICES GROUP,Assets Under Construction (Oracle PA Control Account)
FCO,FCO,23/11/2018,9885211,87528.08,ADP,Le Staff Pay
FCO,FCO,20/11/2018,9877529,87321.73,ISS FACILITY SERVICES LTD FCO OP - POE,Multiple Accounts
FCO,FCO,07/11/2018,9854563,87275.91,ADP,Le Staff Pay
FCO,FCO,06/11/2018,9853089,86544.13,GEORGE KING ARCHITECTS LTD,Professional Fees
FCO,FCO,08/11/2018,9856721,85236,MICROSOFT LIMITED,Specialist Contractors
FCO,FCO,23/11/2018,9885142,85176.99,EDENRED,Consolidated Volunteer Contribution
FCO,FCO,22/11/2018,9883436,84928.29,HOME OFFICE,Programme Spend (Oracle Projects Control Account)
FCO,FCO,21/11/2018,9880522,84860,MEDAFCO DEVELOPPEMENT,Programme Spend (Oracle Projects Control Account)
FCO,FCO,23/11/2018,9885219,84809.55,AXIOM INTERNATIONAL LTD,Programme Spend (Oracle Projects Control Account)
FCO,FCO,09/11/2018,9859107,83972.68,KOIZA INTERNATIONAL LTD,"Purchase of Furniture, Fittings and Domestic Appliances"
FCO,FCO,01/11/2018,9846908,83457.7,GRAY ROBINSON PA,Assets Under Construction (Oracle PA Control Account)
FCO,FCO,09/11/2018,9859245,82945,FOUNDATION HIRONDELLE,Programme Spend (Oracle Projects Control Account)
FCO,FCO,30/11/2018,9898732,82938,IOM INTERNATIONAL ORG FOR MIGRATION,Programme Spend (Oracle Projects Control Account)
FCO,FCO,07/11/2018,9854538,82930,SEARCH FOR COMMON GROUND,Programme Spend (Oracle Projects Control Account)
FCO,FCO,01/11/2018,9795959,82668.81,FCO SERVICES,Construction Project more than 10k
FCO,FCO,13/11/2018,9865170,81832.67,HYDROGRAPHIC OFFICE,Programme Spend (Oracle Projects Control Account)
FCO,FCO,28/11/2018,9894072,81796,DEFENCE BUSINESS SERVICES FINANCE,Vehicle Hire
FCO,FCO,28/11/2018,9894044,81690.36,HI TEK SIGNS AND DESIGNS LTD,Programme Spend (Oracle Projects Control Account)
FCO,FCO,16/11/2018,9872656,81618.4,AA WOODS,Construction Project more than 10k
FCO,FCO,23/11/2018,9885714,80909.75,ABROTEA BULGARIA AD,Rental Payments - non residential
FCO,FCO,19/11/2018,9875323,80753.29,VOYA FINANCIAL,Local Staff Pension Contributions
FCO,FCO,07/11/2018,9854528,80000,FCO SERVICES,Assets Under Construction (Oracle PA Control Account)
FCO,FCO,16/11/2018,9872702,80000,FCO SERVICES,Assets Under Construction (Oracle PA Control Account)
FCO,FCO,05/11/2018,9850972,79837.26,VOYA FINANCIAL,Local Staff Pension Contributions
FCO,FCO,29/11/2018,9897226,79755.1,FCO SERVICES,Construction Project more than 10k
FCO,FCO,29/11/2018,9896913,79710.26,BEYOND BORDERS CONSULTING,Programme Spend (Oracle Projects Control Account)
FCO,FCO,19/11/2018,9875313,79646.07,FIEDLER AND RANDEL STEUERBERATER,Multiple Accounts
FCO,FCO,06/11/2018,9852854,79531.44,INNOVATION AND INSIGHT FZE,Programme Spend (Oracle Projects Control Account)
FCO,FCO,14/11/2018,9868030,79278.96,GOVERNORS OFFICE CAPITAL FUNDS,Programme Spend (Oracle Projects Control Account)
FCO,FCO,29/11/2018,9897329,78835.13,INDEPENDENT DIPLOMATS,Programme Spend (Oracle Projects Control Account)
FCO,FCO,09/11/2018,9858368,78581.25,BLOOMBERG LP,Programme Spend (Oracle Projects Control Account)
FCO,FCO,09/11/2018,9859040,78336,STAKEHOLDER DEMOCRACY NETWORK,Programme Spend (Oracle Projects Control Account)
FCO,FCO,29/11/2018,9897211,78286.87,FCO SERVICES,Construction Project more than 10k
FCO,FCO,21/11/2018,9880408,77668.83,BBC MEDIA ACTION,Programme Spend (Oracle Projects Control Account)
FCO,FCO,27/11/2018,9892156,77545.85,COMPUTACENTER UK LTD,IT Support
FCO,FCO,14/11/2018,9868115,77013.38,AECOM,Programme Spend (Oracle Projects Control Account)
FCO,FCO,20/11/2018,9878283,76850.59,INTEGRITY RESEARCH AND CONSULTANCY LTD,Programme Spend (Oracle Projects Control Account)
FCO,FCO,22/11/2018,9883774,76768.43,CROWN COMMERCIAL SERVICE,Wdhs/Wsds
FCO,FCO,30/11/2018,9898711,76199.23,VOYA FINANCIAL,Local Staff Pension Contributions
FCO,FCO,08/11/2018,9856738,76138.44,UNITED NATIONS,Protocol - General VAT Refunds to Other Organisations
FCO,FCO,05/11/2018,9850912,75911.74,THE BRITISH COUNCIL,Programme Spend (Oracle Projects Control Account)
FCO,FCO,16/11/2018,9872679,75246,ACTIONAID MYANMAR,Programme Spend (Oracle Projects Control Account)
FCO,FCO,08/11/2018,9856904,75166.46,AEGIS DEFENCE SERVICES LTD,Multiple Accounts
FCO,FCO,26/11/2018,9888139,74953.44,FCO SERVICES,End User Software and Hardware
FCO,FCO,12/11/2018,9862054,74824.44,CRIMINAL JUSTICE TASK FORCE - CJTF,Recharge Suspense Account (Oracle PA Control Account)
FCO,FCO,14/11/2018,9867825,74582,GLOBAL DISINFORMATION INDEX,Programme Spend (Oracle Projects Control Account)
FCO,FCO,19/11/2018,9875783,74305.3,AXIOM INTERNATIONAL LTD,Programme Spend (Oracle Projects Control Account)
FCO,FCO,08/11/2018,9878512,74255.22,THE ROYAL BANK OF SCOTLAND,GPC Clearing Account
FCO,FCO,21/11/2018,9880670,74039.36,FCO SERVICES,Air Freight Dip Bags - Freight & Clearance Charges
FCO,FCO,14/11/2018,9867069,73680.14,COMET-ME LTD (CC),Programme Spend (Oracle Projects Control Account)
FCO,FCO,15/11/2018,9869666,72737.15,KBR,Catering Services
FCO,FCO,09/11/2018,9859039,72574.43,ALBANY ASSOCIATES,Programme Spend (Oracle Projects Control Account)
FCO,FCO,02/11/2018,9848764,72400,METHODS BUSINESS AND DIGITAL TECHNOLOGY LIMITED,IT/IS Consultancy
FCO,FCO,07/11/2018,9854659,72106.03,ARK GROUP DMCC,Programme Spend (Oracle Projects Control Account)
FCO,FCO,02/11/2018,9848780,72036,FCO SERVICES,Assets Under Construction (Oracle PA Control Account)
FCO,FCO,27/11/2018,9892167,71875,COMPUTACENTER UK LTD,IT Support
FCO,FCO,15/11/2018,9870780,71512.06,NI CO OPERATION OVERSEAS NI CO LTD,Programme Spend (Oracle Projects Control Account)
FCO,FCO,22/11/2018,9883434,71235.62,INTEGRITY RESEARCH AND CONSULTANCY LTD,Programme Spend (Oracle Projects Control Account)
FCO,FCO,26/11/2018,9888156,70756.84,FCO SERVICES,Unscheduled repairs to building infrastructure
FCO,FCO,20/11/2018,9877768,70715.47,INTERSERVE FM LTD,Construction Project more than 10k
FCO,FCO,13/11/2018,9864985,70651.71,ISS FACILITY SERVICES LTD FCO OP,FM Interserve BES Maintenance
FCO,FCO,14/11/2018,9867144,70242.06,DESBRO HOLDINGS KENYA LTD,Rental Payments - residential
FCO,FCO,22/11/2018,9883530,70208.37,CABINET OFFICE,Recharge Suspense Account (Oracle PA Control Account)
FCO,FCO,19/11/2018,9875463,70000,UNITED NATIONS,Programme Spend (Oracle Projects Control Account)
FCO,FCO,05/11/2018,9851252,69824.52,CABINET OFFICE,Programme Spend (Oracle Projects Control Account)
FCO,FCO,01/11/2018,9847233,69517.87,AXIOM INTERNATIONAL LTD,Programme Spend (Oracle Projects Control Account)
FCO,FCO,14/11/2018,9867822,69147.96,BAE SYSTEMS APPLIED INTELLIGENCE LIMITED,IT/IS Consultancy
FCO,FCO,30/11/2018,9898811,68797.44,BAE SYSTEMS APPLIED INTELLIGENCE LIMITED,IT Management and Change
FCO,FCO,29/11/2018,9897011,68737.9,THE ROYAL BANK OF SCOTLAND,Children's Concessionary Journeys
FCO,FCO,15/11/2018,9870671,68335.85,CABINET OFFICE,Programme Spend (Oracle Projects Control Account)
FCO,FCO,30/11/2018,9898692,67972.77,THE BRITISH COUNCIL,Programme Spend (Oracle Projects Control Account)
FCO,FCO,28/11/2018,9894290,67877.92,COFFEY INTERNATIONAL DEVELOPMENT,Programme Spend (Oracle Projects Control Account)
FCO,FCO,15/11/2018,9870734,67661.78,FCO SERVICES,Information Systems Implementation DO NOT USE
FCO,FCO,14/11/2018,9868020,67156.6,GOVERNMENT LEGAL DEPARTMENT,Legal Consultancy
FCO,FCO,13/11/2018,9865113,66439.34,KOIZA INTERNATIONAL LTD,"Purchase of Furniture, Fittings and Domestic Appliances"
FCO,FCO,21/11/2018,9880632,66281.7,CABINET OFFICE,Programme Spend (Oracle Projects Control Account)
FCO,FCO,07/11/2018,9854449,65943,IOM INTERNATIONAL ORG FOR MIGRATION,Programme Spend (Oracle Projects Control Account)
FCO,FCO,26/11/2018,9887901,65631.97,WYG GROUP,Estates Management Services
FCO,FCO,12/11/2018,9862897,65285.94,THE BRITISH COUNCIL,British Council Funding Transfer
FCO,FCO,20/11/2018,9878071,64915.7,WHITEHALL FUNDING,Recharge Suspense Account (Oracle PA Control Account)
FCO,FCO,28/11/2018,9894325,64862.48,COMPAREX UK LTD,End User Software and Hardware
FCO,FCO,08/11/2018,9856896,64811,FCO SERVICES,Assets Under Construction (Oracle PA Control Account)
FCO,FCO,01/11/2018,9838540,64533,BAE SYSTEMS APPLIED INTELLIGENCE LIMITED,Multiple Accounts
FCO,FCO,12/11/2018,9862996,64268.5,ACCOMMODATION PROVIDER,Rental Payments - residential
FCO,FCO,28/11/2018,9894287,64261.54,ITAD LTD,Programme Spend (Oracle Projects Control Account)
FCO,FCO,27/11/2018,9892162,64228,COMPUTACENTER UK LTD,IT Hosting
FCO,FCO,14/11/2018,9868058,64163.3,GOVERNMENT LEGAL DEPARTMENT,Legal Consultancy
FCO,FCO,13/11/2018,9865438,63664.2,PICKFORDS MOVE MANAGEMENT LTD,Heavy Baggage
FCO,FCO,21/11/2018,9880566,63421.76,BRITISH TELECOM PLC,Telephone line and equipment rental charges
FCO,FCO,15/11/2018,9870674,63083.7,CABINET OFFICE,Programme Spend (Oracle Projects Control Account)
FCO,FCO,12/11/2018,9863319,62756.4,COUNCIL OF EUROPE,Programme Spend (Oracle Projects Control Account)
FCO,FCO,20/11/2018,9877543,62691.55,ISS FACILITY SERVICES LTD FCO OP - POE,Rental Payments - non residential
FCO,FCO,08/11/2018,9856713,62500,THE HALO TRUST,Programme Spend (Oracle Projects Control Account)
FCO,FCO,30/11/2018,9898694,62426.73,THE BRITISH COUNCIL,Programme Spend (Oracle Projects Control Account)
FCO,FCO,01/11/2018,9846898,62015,THE HALO TRUST,Programme Spend (Oracle Projects Control Account)
FCO,FCO,01/11/2018,9847296,62000,IBRD - INTERNATIONAL BANK FOR RECONSTRUCTION AND DEVELOPMENT,Programme Spend (Oracle Projects Control Account)
FCO,FCO,15/11/2018,9870662,61751.86,CABINET OFFICE,Programme Spend (Oracle Projects Control Account)
FCO,FCO,20/11/2018,9878236,60813.07,LEGAL AND GENERAL ASSURANCE SOCIETY LTD,Additional Volunteer Contribution
FCO,FCO,02/11/2018,9849045,60113,OECD,Programme Spend (Oracle Projects Control Account)
FCO,FCO,30/11/2018,9898756,60103,CONCILIATION RESOURCES,Programme Spend (Oracle Projects Control Account)
FCO,FCO,21/11/2018,9880252,60040.51,INSTITUTO DE GESTAO FINANCEIRA DA SEGURANCA SOCIAL,Le Staff Pay
FCO,FCO,02/11/2018,9848775,60002,FCO SERVICES,Assets Under Construction (Oracle PA Control Account)
FCO,FCO,12/11/2018,9863035,60000,FCO SERVICES,Assets Under Construction (Oracle PA Control Account)
FCO,FCO,28/11/2018,9894403,59960,RECSA REGIONAL CENTRE ON SMALL ARMS,Programme Spend (Oracle Projects Control Account)
FCO,FCO,20/11/2018,9877785,59680.27,INTERSERVE FM LTD,Construction Project more than 10k
FCO,FCO,26/11/2018,9887987,59390,WOMEN IN FRONT,Programme Spend (Oracle Projects Control Account)
FCO,FCO,20/11/2018,9878348,59209.83,BALLIAN TECHNIKI,Construction Project more than 10k
FCO,FCO,02/11/2018,9848309,59090.8,ACCL INTERNATIONAL KABUL,Fuel Oil Residential
FCO,FCO,01/11/2018,9846899,59048,THE HALO TRUST,Programme Spend (Oracle Projects Control Account)
FCO,FCO,13/11/2018,9865583,58654,ALLEN VANGUARD LTD,Vehicles Miscellaneous
FCO,FCO,13/11/2018,9865735,58630.39,UN GENEVA,Programme Spend (Oracle Projects Control Account)
FCO,FCO,19/11/2018,9875755,58511.4,CAPITA BUSINESS SERVICES LTD,Recruitment - Specialist
FCO,FCO,02/11/2018,9848499,58496.88,G4S SECURITY SERVICES SA,Local Guards
FCO,FCO,22/11/2018,9883246,58480.9,WYG GROUP,Programme Spend (Oracle Projects Control Account)
FCO,FCO,01/11/2018,9618669,57920,FCO SERVICES,IT Hosting
FCO,FCO,21/11/2018,9880603,57565.73,PROFESSIONAL LANGUAGE SOLUTIONS,Language Tuition: Essential
FCO,FCO,13/11/2018,9865458,57524.37,HYDROGRAPHIC OFFICE,Programme Spend (Oracle Projects Control Account)
FCO,FCO,08/11/2018,9856707,57502,GROUNDTRUTH CONSULTING LTD,Training
FCO,FCO,27/11/2018,9891753,57500,STRATAGEM INTERNATIONAL,Programme Spend (Oracle Projects Control Account)
FCO,FCO,15/11/2018,9870843,57426.57,AETNA,LS Staff Medical Costs
FCO,FCO,14/11/2018,9867652,57413.81,PROMO LEX ASSOCIATION,Programme Spend (Oracle Projects Control Account)
FCO,FCO,12/11/2018,9863026,57398.05,FCO SERVICES,IT Management and Change
FCO,FCO,01/11/2018,9847458,57395.35,COMPUTACENTER UK LTD,IT Management and Change
FCO,FCO,29/11/2018,9897278,57188.56,DIPLOMATIC MISSION SUPPLIES LTD,"Purchase of Furniture, Fittings and Domestic Appliances"
FCO,FCO,08/11/2018,9856235,56554.87,ACCOMMODATION PROVIDER,Recharge Suspense Account (Oracle PA Control Account)
FCO,FCO,29/11/2018,9896917,56540,THE ASIA FOUNDATION,Programme Spend (Oracle Projects Control Account)
FCO,FCO,09/11/2018,9858500,56515.59,KAMAR BUSINESS CENTER CJSC,Rental Payments - non residential
FCO,FCO,20/11/2018,9877802,56398.14,INTERSERVE FM LTD,Assets Under Construction (Oracle PA Control Account)
FCO,FCO,20/11/2018,9878232,56376,UNITED NATIONS,Programme Spend (Oracle Projects Control Account)
FCO,FCO,01/11/2018,9847162,56160.97,DEUTSCHER LEVANTE VERLAG GMBH,Programme Spend (Oracle Projects Control Account)
FCO,FCO,26/11/2018,9887905,56130.92,CABINET OFFICE,Programme Spend (Oracle Projects Control Account)
FCO,FCO,06/11/2018,9853098,56031.55,RANGER PROTECTION AND SECURITY COMPANY LTD,Local Guards
FCO,FCO,15/11/2018,9870849,55883.91,RESTORE PLC,Specialist Contractors
FCO,FCO,30/11/2018,9898683,55883.91,RESTORE PLC,Specialist Contractors
FCO,FCO,15/11/2018,9870836,55669,NORTH HIGHLAND UK LTD,Specialist Contractors
FCO,FCO,12/11/2018,9863030,55403,FCO SERVICES,Assets Under Construction (Oracle PA Control Account)
FCO,FCO,27/11/2018,9891700,55185.92,PILGRIMS AFRICA LTD,Local Guards
FCO,FCO,16/11/2018,9871823,54978.4,BEDER,Programme Spend (Oracle Projects Control Account)
FCO,FCO,06/11/2018,9852794,54798.8,ARTEOS GP LIMITED AND CO KG,Multiple Accounts
FCO,FCO,29/11/2018,9897236,54750.07,FCO SERVICES,Assets Under Construction (Oracle PA Control Account)
FCO,FCO,27/11/2018,9892096,54749.01,AKTIS STRATEGY,Programme Spend (Oracle Projects Control Account)
FCO,FCO,27/11/2018,9891434,54669.7,GLICO PROPERTIES LIMITED,Rental Payments - residential
FCO,FCO,30/11/2018,9898712,54510.59,COFFEY INTERNATIONAL DEVELOPMENT,Programme Spend (Oracle Projects Control Account)
FCO,FCO,14/11/2018,9867930,54305.88,KOIZA INTERNATIONAL LTD,Property Maintenance Overseas Residential
FCO,FCO,01/11/2018,9846934,54260.27,AETNA,LS Staff Medical Costs
FCO,FCO,29/11/2018,9897263,53600,COMMONWEALTH SECRETARIAT,Programme Spend (Oracle Projects Control Account)
FCO,FCO,07/11/2018,9854948,53551.59,VODAFONE LTD,Mobile Telephone Equipment
FCO,FCO,02/11/2018,9849090,53325.89,IIJ INT INST JUSTICE RULE OF LAW,Programme Spend (Oracle Projects Control Account)
FCO,FCO,20/11/2018,9877763,52818.48,INTERSERVE FM LTD,Construction Project more than 10k
FCO,FCO,27/11/2018,9892147,52630.16,COMPUTACENTER UK LTD,IT Networking
FCO,FCO,02/11/2018,9848768,52188.66,FCO SERVICES,Assets Under Construction (Oracle PA Control Account)
FCO,FCO,13/11/2018,9864914,52156.09,TORCHLIGHT SOLUTIONS LTD,Programme Spend (Oracle Projects Control Account)
FCO,FCO,08/11/2018,9856932,51420.53,RIDGE AND PARTNERS LLP,Assets Under Construction (Oracle PA Control Account)
FCO,FCO,05/11/2018,9851113,51170,MOZIAC SERVICES LIMITED,IT Management and Change
FCO,FCO,07/11/2018,9854763,50960.55,LOMALINDA INVESTMENT LIMITED,Multiple Accounts
FCO,FCO,13/11/2018,9865579,50770,IMC WORLDWIDE LTD,Programme Spend (Oracle Projects Control Account)
FCO,FCO,07/11/2018,9854499,50112.55,DX NETWORK SERVICES,Postal Services
FCO,FCO,20/11/2018,9878118,50070.01,ECORYS GROUP UK,Programme Spend (Oracle Projects Control Account)
FCO,FCO,12/11/2018,9862165,50051.06,MANTRAC TANZANIA LIMITED,Rental Payments - residential
FCO,FCO,20/11/2018,9877690,49888.4,INTERSERVE FM LTD,Assets Under Construction (Oracle PA Control Account)
FCO,FCO,28/11/2018,9894264,49516.33,IMC WORLDWIDE LTD,Programme Spend (Oracle Projects Control Account)
FCO,FCO,08/11/2018,9856841,49494.27,EUROCONTROL,Protocol - General VAT Refunds to Other Organisations
FCO,FCO,20/11/2018,9877757,49476.97,INTERSERVE FM LTD,Construction Project more than 10k
FCO,FCO,20/11/2018,9878268,49353.5,ZAYANI,Assets Under Construction (Oracle PA Control Account)
FCO,FCO,22/11/2018,9883503,49316.25,DANISH DEMINING GROUP,Programme Spend (Oracle Projects Control Account)
FCO,FCO,08/11/2018,9856894,49286,FCO SERVICES,Assets Under Construction (Oracle PA Control Account)
FCO,FCO,30/11/2018,9898920,49093.99,COUNCIL OF EUROPE,Programme Spend (Oracle Projects Control Account)
FCO,FCO,07/11/2018,9854647,49050,GREENSHIELDS COWIE + CO LTD,Freight & Customs Clearance Charges
FCO,FCO,21/11/2018,9880399,49026.24,GOVERNMENT LEGAL DEPARTMENT,Legal Consultancy
FCO,FCO,22/11/2018,9882360,49014.22,HOLYFAX LIMITED,Rental Payments - residential
FCO,FCO,29/11/2018,9896854,48760.54,ACCOMMODATION PROVIDER,Recharge Suspense Account (Oracle PA Control Account)
FCO,FCO,30/11/2018,9898785,48743,MAYORS OFFICE FOR POLICING AND CRIME MOPC,Programme Spend (Oracle Projects Control Account)
FCO,FCO,26/11/2018,9888129,48450,FCO SERVICES,Consular Crisis Expenditure
FCO,FCO,16/11/2018,9872713,48100,FCO SERVICES,IT/IS Consultancy
FCO,FCO,26/11/2018,9888007,47863.91,WESTMINSTER FOUNDATION FOR DEMOCRACY,Programme Spend (Oracle Projects Control Account)
FCO,FCO,26/11/2018,9887817,47857.42,G4S SECURITY SERVICES KENYA LTD,Local Guards
FCO,FCO,26/11/2018,9887818,47857.42,G4S SECURITY SERVICES KENYA LTD,Local Guards
FCO,FCO,15/11/2018,9869667,47720.87,KBR,Property Maintenance Overseas Non Residential
FCO,FCO,06/11/2018,9852848,47372.01,BAE SYSTEMS APPLIED INTELLIGENCE LIMITED,IT Management and Change
FCO,FCO,30/11/2018,9898668,47250.3,CHATHAM HOUSE,Programme Spend (Oracle Projects Control Account)
FCO,FCO,22/11/2018,9883734,47000,POLICY AND LEGAL ADVOCACY CENTRE,Programme Spend (Oracle Projects Control Account)
FCO,FCO,30/11/2018,9898808,46965.94,ALCIS HOLDINGS LTD,Programme Spend (Oracle Projects Control Account)
FCO,FCO,26/11/2018,9888368,46680.58,JONES LANG LASALLE,Rental Payments - non residential
FCO,FCO,16/11/2018,9872736,46206.58,ALCIS HOLDINGS LTD,Programme Spend (Oracle Projects Control Account)
FCO,FCO,09/11/2018,9859141,46068.91,URSSAF,Overseas Tax And Social Security
FCO,FCO,15/11/2018,9870880,46000,NATIONAL DEMOCRATIC INSTITUTE,Programme Spend (Oracle Projects Control Account)
FCO,FCO,22/11/2018,9883492,45740.37,FCO SERVICES,Assets Under Construction (Oracle PA Control Account)
FCO,FCO,20/11/2018,9878173,45650,RIDGE AND PARTNERS LLP,Assets Under Construction (Oracle PA Control Account)
FCO,FCO,13/11/2018,9864940,45622.75,ISS FACILITY SERVICES LTD FCO OP,Multiple Accounts
FCO,FCO,09/11/2018,9859184,45439.41,MONARC CONSTRUCTION INC,Construction Project more than 10k
FCO,FCO,21/11/2018,9880557,45405,FCO SERVICES,Assets Under Construction (Oracle PA Control Account)
FCO,FCO,07/11/2018,9854447,45000,AECOM,Assets Under Construction (Oracle PA Control Account)
FCO,FCO,05/11/2018,9850800,44907.3,ACCOMMODATION PROVIDER,Rental Payments - residential
FCO,FCO,12/11/2018,9861825,44907.3,ACCOMMODATION PROVIDER,Recharge Suspense Account (Oracle PA Control Account)
FCO,FCO,30/11/2018,9898803,44866.25,CIVICA UK LIMITED,IT/IS Consultancy
FCO,FCO,20/11/2018,9877585,44803.1,INTERSERVE FM LTD,Residential Property Services
FCO,FCO,13/11/2018,9864958,44568.63,ISS FACILITY SERVICES LTD FCO OP,Manned Guarding Services
FCO,FCO,28/11/2018,9893659,44467.26,DENJENNY NIGERIA LIMITED,Recharge Suspense Account (Oracle PA Control Account)
FCO,FCO,13/11/2018,9864946,44333,ISS FACILITY SERVICES LTD FCO OP,Manned Guarding Services
FCO,FCO,19/11/2018,9875850,44100,IIZUKA,IT Management and Change
FCO,FCO,19/11/2018,9875718,44000.5,NURSERY,Nursery
FCO,FCO,09/11/2018,9859048,43921.49,MERCY CORPS,Programme Spend (Oracle Projects Control Account)
FCO,FCO,28/11/2018,9894063,43914,TODD RESEARCH LTD,Assets Under Construction (Oracle PA Control Account)
FCO,FCO,27/11/2018,9892093,43896.69,SEARCH FOR COMMON GROUND,Programme Spend (Oracle Projects Control Account)
FCO,FCO,13/11/2018,9865473,43757.28,COMPAREX UK LTD,End User Software and Hardware
FCO,FCO,28/11/2018,9893684,43684.8,THISTLE HOTELS,Programme Spend (Oracle Projects Control Account)
FCO,FCO,12/11/2018,9863096,43551.69,AETNA,LS Staff Medical Costs
FCO,FCO,28/11/2018,9894288,43547.9,IIZUKA,IT Hosting
FCO,FCO,20/11/2018,9877676,43500.87,INTERSERVE FM LTD,Construction Project more than 10k
FCO,FCO,30/11/2018,9898754,43443,CONCILIATION RESOURCES,Programme Spend (Oracle Projects Control Account)
FCO,FCO,16/11/2018,9872179,43076.93,WALSONS SERVICES PVT LTD,Local Guards
FCO,FCO,30/11/2018,9898673,43023.6,IBM UNITED KINGDOM LTD,End User Software and Hardware
FCO,FCO,06/11/2018,9852518,42778.93,UNDP,Misc Security Payments
FCO,FCO,20/11/2018,9877720,42764.54,INTERSERVE FM LTD,Construction Project more than 10k
FCO,FCO,14/11/2018,9867496,42748.83,PILGRIMS AFRICA LTD,Local Guards
FCO,FCO,14/11/2018,9867629,42594.91,Babcock Vehicle Engineering Ltd,Assets Under Construction (Oracle PA Control Account)
FCO,FCO,21/11/2018,9880200,42416.15,ACCOMMODATION PROVIDER,Rental Payments - residential
FCO,FCO,20/11/2018,9877922,41868.67,G4S RISK MANAGEMENT LTD,Programme Spend (Oracle Projects Control Account)
FCO,FCO,28/11/2018,9894345,41828,CARBON TRUST ADVISORY LTD,Programme Spend (Oracle Projects Control Account)
FCO,FCO,07/11/2018,9854804,41602.88,ICTS ITALIA SRL,Local Guards
FCO,FCO,29/11/2018,9897268,41531.34,MINES ADVISORY GROUP,Programme Spend (Oracle Projects Control Account)
FCO,FCO,06/11/2018,9852891,41343.6,LA INTERNATIONAL COMPUTER CONSULTANTS LTD,IT Management and Change
FCO,FCO,26/11/2018,9887833,41182.8,WYG GROUP,Programme Spend (Oracle Projects Control Account)
FCO,FCO,20/11/2018,9877586,41135.12,INTERSERVE FM LTD,Construction Project more than 10k
FCO,FCO,09/11/2018,9859372,40973.22,SECURITAS SAC,Local Guards
FCO,FCO,02/11/2018,9848518,40797.27,PAUNG KU,Programme Spend (Oracle Projects Control Account)
FCO,FCO,28/11/2018,9894367,40784,CITY OF WESTMINSTER,Rates Taxes Non-Residential
FCO,FCO,07/11/2018,9854638,40650.75,BAE SYSTEMS APPLIED INTELLIGENCE LIMITED,IT Management and Change
FCO,FCO,28/11/2018,9894381,40500,CEFAS (THE CENTRE FOR ENVIRONMENT FISHERIES + AQUACULTURE SCIENCE),Programme Spend (Oracle Projects Control Account)
FCO,FCO,27/11/2018,9891703,40399.24,EMMAHALY PETROLEUM COMPANY LTD,Fuel Oil Non-Residential
FCO,FCO,13/11/2018,9865614,40291.06,PICKFORDS MOVE MANAGEMENT LTD,Heavy Baggage
FCO,FCO,26/11/2018,9888295,40282.99,KPMG FIDUCIAIRE,Recharge Suspense Account (Oracle PA Control Account)
FCO,FCO,01/11/2018,9846910,40074.72,IMC WORLDWIDE LTD,Programme Spend (Oracle Projects Control Account)
FCO,FCO,21/11/2018,9880807,40000,INTERNATIONAL ATOMIC ENERGY AUTHORITY,Programme Spend (Oracle Projects Control Account)
FCO,FCO,23/11/2018,9885144,40000,HOSTAGE UK,Human Rights : Assistance Policy
FCO,FCO,20/11/2018,9877531,39975.56,ISS FACILITY SERVICES LTD FCO OP - POE,Multiple Accounts
FCO,FCO,19/11/2018,9874624,39903.35,MANTRAC TANZANIA LIMITED,Rental Payments - residential
FCO,FCO,22/11/2018,9883515,39863.33,NATIONAL HOTEL COMPLEX,Rental Payments - non residential
FCO,FCO,07/11/2018,9854706,39769.57,ASCENSION ISLAND GOVERNMENT,Programme Spend (Oracle Projects Control Account)
FCO,FCO,28/11/2018,9894137,39685,SAFERWORLD,Programme Spend (Oracle Projects Control Account)
FCO,FCO,15/11/2018,9870669,39565.98,CABINET OFFICE,Programme Spend (Oracle Projects Control Account)
FCO,FCO,13/11/2018,9865572,39556,SERCO LIMITED,Programme Spend (Oracle Projects Control Account)
FCO,FCO,14/11/2018,9867619,39550.31,Babcock Vehicle Engineering Ltd,Assets Under Construction (Oracle PA Control Account)
FCO,FCO,01/11/2018,9847031,39433,FCO SERVICES,Assets Under Construction (Oracle PA Control Account)
FCO,FCO,22/11/2018,9883508,39433,ST ANDREWS REFUGEE SERVICES,Programme Spend (Oracle Projects Control Account)
FCO,FCO,01/11/2018,9847059,39324.87,PROTECTION GROUP INTERNATIONAL,Programme Spend (Oracle Projects Control Account)
FCO,FCO,29/11/2018,9896861,39178.38,TRELLICOR PTY LTD,Security: Works Residential
FCO,FCO,26/11/2018,9888148,39076.02,AETNA,LS Staff Medical Costs
FCO,FCO,20/11/2018,9877526,39058.37,ISS FACILITY SERVICES LTD FCO OP - POE,Multiple Accounts
FCO,FCO,14/11/2018,9867616,38915.35,Babcock Vehicle Engineering Ltd,Assets Under Construction (Oracle PA Control Account)
FCO,FCO,20/11/2018,9878099,38817.89,THE THOMSON FOUNDATION,Programme Spend (Oracle Projects Control Account)
FCO,FCO,21/11/2018,9880396,38804.71,CABINET OFFICE,Programme Spend (Oracle Projects Control Account)
FCO,FCO,13/11/2018,9865082,38764.08,BBC BRITISH BROADCASTING CORPORATION,Programme Spend (Oracle Projects Control Account)
FCO,FCO,20/11/2018,9877129,38686.47,CONTRIBUTORY PROVIDENT FUND,Recharge Suspense Account (Oracle PA Control Account)
FCO,FCO,13/11/2018,9865041,38626.69,ALDAR PROPERTIES PJSC,Rental Payments - residential
FCO,FCO,29/11/2018,9897189,38625,FCO SERVICES,Assets Under Construction (Oracle PA Control Account)
FCO,FCO,14/11/2018,9867853,38535,MACE INTERNATIONAL UK LIMITED,Assets Under Construction (Oracle PA Control Account)
FCO,FCO,21/11/2018,9880591,38478.2,PROFESSIONAL LANGUAGE SOLUTIONS,Language Tuition: Essential
FCO,FCO,07/11/2018,9854555,38239.02,ADVICE ON INDIVIDUAL RIGHTS IN EUROPE,Programme Spend (Oracle Projects Control Account)
FCO,FCO,09/11/2018,9859054,38031,DENTONS UKMEA LLP,Specialist Contractors
FCO,FCO,01/11/2018,9847301,38000,IBRD - INTERNATIONAL BANK FOR RECONSTRUCTION AND DEVELOPMENT,Programme Spend (Oracle Projects Control Account)
FCO,FCO,06/11/2018,9852920,37982.33,AKTIS STRATEGY,Programme Spend (Oracle Projects Control Account)
FCO,FCO,08/11/2018,9856657,37815.16,CAMARA COLOMBIANA DE LA INFRAESTRUCTURA,Programme Spend (Oracle Projects Control Account)
FCO,FCO,05/11/2018,9851147,37703.24,ACCOMMODATION PROVIDER,Rental Payments - residential
FCO,FCO,14/11/2018,9867599,37650,PUBLIC HEALTH ENGLAND,Programme Spend (Oracle Projects Control Account)
FCO,FCO,02/11/2018,9848610,37641.94,MARKAZ GULF REAL ESTATE FUND,Rental Payments - residential
FCO,FCO,08/11/2018,9856208,37516.34,PAGE GROUP ISRAEL LIMITED,Local Guards
FCO,FCO,22/11/2018,9883812,37515.82,SERVICIOS DE COMUNICACION INTEGRAL ABSOC SA DE CV,Programme Spend (Oracle Projects Control Account)
FCO,FCO,27/11/2018,9891695,37426.47,MOD PUBLIC SUB ACC HMG 4780,Programme Spend (Oracle Projects Control Account)
FCO,FCO,15/11/2018,9869921,37381.2,NEW ERA OIL AND GAS,Fuel Oil Residential
FCO,FCO,21/11/2018,9880614,37304.09,FCO SERVICES,Air Freight Dip Bags - Freight & Clearance Charges
FCO,FCO,29/11/2018,9896921,37291.8,WESTMINSTER FOUNDATION FOR DEMOCRACY,Programme Spend (Oracle Projects Control Account)
FCO,FCO,13/11/2018,9864976,37236.67,ISS FACILITY SERVICES LTD FCO OP,FM Interserve BES Maintenance
FCO,FCO,22/11/2018,9882074,37232.69,BHC INDIA STAFF PROVIDENT FUND,Multiple Accounts
FCO,FCO,28/11/2018,9894333,37231.95,CARIBBEAN CUSTOMS LAW ENFORCEMENT,Recharge Suspense Account (Oracle PA Control Account)
FCO,FCO,21/11/2018,9880245,37228.03,POSITIVE FOR YOUTH DEVELOPMENT,Programme Spend (Oracle Projects Control Account)
FCO,FCO,19/11/2018,9875912,37074.86,G4S SECURITY SERVICE DRC SPRL,Local Guards
FCO,FCO,19/11/2018,9875914,37074.86,G4S SECURITY SERVICE DRC SPRL,Local Guards
FCO,FCO,01/11/2018,9847166,36968.03,SCHOOL,Schooling for Children at Post
FCO,FCO,26/11/2018,9887836,36948,WYG GROUP,Programme Spend (Oracle Projects Control Account)
FCO,FCO,26/11/2018,9888337,36308.42,BRICKELL BAY TOWER LTD,Rental Payments - non residential
FCO,FCO,13/11/2018,9865119,36270.4,CHILD LINK INC,Programme Spend (Oracle Projects Control Account)
FCO,FCO,15/11/2018,9869403,35993.18,SOUTH REVENUE SERVICE,Le Staff Pay
FCO,FCO,22/11/2018,9883489,35868.8,FCO SERVICES,Construction Project more than 10k
FCO,FCO,20/11/2018,9877775,35845.05,INTERSERVE FM LTD,Construction Project more than 10k
FCO,FCO,16/11/2018,9872772,35704.72,COLLEGE OF EUROPE,Academic Contacts
FCO,FCO,13/11/2018,9865593,35698.52,COMPUTACENTER UK LTD,End User Software and Hardware
FCO,FCO,08/11/2018,9856715,35433,KINDRED AGENCY LTD,Public Relations
FCO,FCO,02/11/2018,9848737,35369,UNITED NATIONS,Programme Spend (Oracle Projects Control Account)
FCO,FCO,15/11/2018,9869567,35346.79,ACCOMMODATION PROVIDER,Rental Payments - residential
FCO,FCO,27/11/2018,9892160,35346.79,ACCOMMODATION PROVIDER,Rental Payments - residential
FCO,FCO,13/11/2018,9864704,35195.37,LAH,Programme Spend (Oracle Projects Control Account)
FCO,FCO,09/11/2018,9858442,35163.13,ABU DHABI DISTRIBUTION COMPANY,Water Non-Residential
FCO,FCO,14/11/2018,9868335,35107.22,SPECIALIZED PIPE TECHNOLOGIES,Assets Under Construction (Oracle PA Control Account)
FCO,FCO,09/11/2018,9859088,35105.61,HOME OFFICE,Programme Spend (Oracle Projects Control Account)
FCO,FCO,27/11/2018,9891697,35086.74,RWANDA BRIDGES TO JUSTICE,Programme Spend (Oracle Projects Control Account)
FCO,FCO,13/11/2018,9865607,35031.87,AGENOR SARL,Programme Spend (Oracle Projects Control Account)
FCO,FCO,08/11/2018,9857025,35029.3,UTEXAFRICA,Rental Payments - residential
FCO,FCO,08/11/2018,9857046,35029.3,UTEXAFRICA,Rental Payments - residential
FCO,FCO,15/11/2018,9870666,35026.35,CABINET OFFICE,Programme Spend (Oracle Projects Control Account)
FCO,FCO,30/11/2018,9898742,35007.27,ONE SANSOME PROPERTY LLC,Rental Payments - non residential
FCO,FCO,21/11/2018,9879578,34812.63,DATACOM EMPLOYER SERVICES,Le Staff Pay
FCO,FCO,21/11/2018,9880809,34801.2,THE KALEIDOSCOPE DIVERSITY TRUST,Programme Spend (Oracle Projects Control Account)
FCO,FCO,28/11/2018,9894492,34611.24,THE ROYAL BANK OF SCOTLAND,UK - Air Travel
FCO,FCO,01/11/2018,9710555,34535,FCO SERVICES,Assets Under Construction (Oracle PA Control Account)
FCO,FCO,01/11/2018,9847035,34535,FCO SERVICES,Assets Under Construction (Oracle PA Control Account)
FCO,FCO,26/11/2018,9888430,34462.69,ALIANZA PARA LA PAZ ONG,Programme Spend (Oracle Projects Control Account)
FCO,FCO,23/11/2018,9885233,34375.5,COMMERCIAL CLOUD SERVICES,Specialist Contractors
FCO,FCO,12/11/2018,9863034,34308.49,FCO SERVICES,IT Support
FCO,FCO,02/11/2018,9848231,34210.56,G4S SECURE SOLUTIONS INT JORDAN,Local Guards
FCO,FCO,29/11/2018,9897176,34165,NORTH HIGHLAND UK LTD,Specialist Contractors
FCO,FCO,02/11/2018,9848770,34125.9,FCO SERVICES,Assets Under Construction (Oracle PA Control Account)
FCO,FCO,13/11/2018,9865454,34075.81,PICKFORDS MOVE MANAGEMENT LTD,Heavy Baggage
FCO,FCO,29/11/2018,9897282,34032.5,SYNERGY FOR JUSTICE LTD,Programme Spend (Oracle Projects Control Account)
FCO,FCO,23/11/2018,9884867,33875,TOYOTA CENTER TBILISI LTD,Assets Under Construction (Oracle PA Control Account)
FCO,FCO,22/11/2018,9883776,33872.38,CROWN COMMERCIAL SERVICE,Wdhs/Wsds
FCO,FCO,27/11/2018,9891720,33800,JWB CRAWFORD,Programme Spend (Oracle Projects Control Account)
FCO,FCO,02/11/2018,9849180,33720.1,FOREIGN AFFAIRS AND INTERNATIONAL TRADE CANADA,Multiple Accounts
FCO,FCO,29/11/2018,9897388,33694,SOLACE IN BUSINESS LTD,Programme Spend (Oracle Projects Control Account)
FCO,FCO,30/11/2018,9898765,33655,HUNT AND PALMER PLC,UK - Air Travel
FCO,FCO,02/11/2018,9848522,33617.79,ALMASSALEH REAL ESTATE,Rental Payments - residential
FCO,FCO,20/11/2018,9878108,33526,SCOTTISH POLICE SERVICES AUTHORITY,Programme Spend (Oracle Projects Control Account)
FCO,FCO,14/11/2018,9867950,33450.76,COMPUTACENTER UK LTD,IT Management and Change
FCO,FCO,09/11/2018,9859051,33427.07,POWER ELECTRICS GENERATORS LTD,Assets Under Construction (Oracle PA Control Account)
FCO,FCO,27/11/2018,9892100,33390.44,SEARCH FOR COMMON GROUND,Programme Spend (Oracle Projects Control Account)
FCO,FCO,15/11/2018,9869600,33372.98,BREATHEEASY CONSULTANTS PRIVATE LIMITED,Estates - Other Machinery and Equipment
FCO,FCO,26/11/2018,9888158,33228.27,FCO SERVICES,Residential Property Services
FCO,FCO,28/11/2018,9894377,33204.78,TORCHLIGHT SOLUTIONS LTD,Programme Spend (Oracle Projects Control Account)
FCO,FCO,13/11/2018,9865619,32749.6,PICKFORDS MOVE MANAGEMENT LTD,Heavy Baggage
FCO,FCO,09/11/2018,9858963,32736.15,MAZARS CINOTTI ACCOUNTING DOO,Multiple Accounts
FCO,FCO,08/11/2018,9856692,32715.42,LTA JUBA LTD,Assets Under Construction (Oracle PA Control Account)
FCO,FCO,07/11/2018,9854678,32709.26,DFID DEPT INTERNATIONAL DEVELOPMENT,Programme Spend (Oracle Projects Control Account)
FCO,FCO,02/11/2018,9849074,32678.16,HOTELLINE FOR TOURISTIC INVESTMENT LTD,Multiple Accounts
FCO,FCO,01/11/2018,9847205,32492.55,KOIZA INTERNATIONAL LTD,"Purchase of Furniture, Fittings and Domestic Appliances"
FCO,FCO,07/11/2018,9854096,32457.85,NCA LAGOS,Recharge Suspense Account (Oracle PA Control Account)
FCO,FCO,28/11/2018,9894105,32457.85,NCA LAGOS,Recharge Suspense Account (Oracle PA Control Account)
FCO,FCO,15/11/2018,9870837,32345,NORTH HIGHLAND UK LTD,Specialist Contractors
FCO,FCO,14/11/2018,9868491,32336.19,IZIIS,Rental Payments - non residential
FCO,FCO,26/11/2018,9887666,32336.03,DIPLOMAT FREIGHT SERVICES LTD(DFS),Multiple Accounts
FCO,FCO,30/11/2018,9898660,32226,ACTED,Programme Spend (Oracle Projects Control Account)
FCO,FCO,16/11/2018,9872744,32201.97,ACCOMMODATION PROVIDER,Accommodation
FCO,FCO,20/11/2018,9877758,32181.07,INTERSERVE FM LTD,Construction Project more than 10k
FCO,FCO,15/11/2018,9869877,32076.64,ACCOMMODATION PROVIDER,Rental Payments - residential
FCO,FCO,21/11/2018,9880974,32000,MOD MINISTRY OF DEFENCE,Programme Spend (Oracle Projects Control Account)
FCO,FCO,29/11/2018,9897306,31976.67,ACCOMMODATION PROVIDER,Rental Payments - residential
FCO,FCO,12/11/2018,9863072,31957.5,VERIFICATION TRAINING AND INFORMATION CENTRE,Programme Spend (Oracle Projects Control Account)
FCO,FCO,15/11/2018,9870482,31901.3,PALLADIUM,Programme Spend (Oracle Projects Control Account)
FCO,FCO,07/11/2018,9854314,31882.67,HAKI AFRICA,Programme Spend (Oracle Projects Control Account)
FCO,FCO,06/11/2018,9853081,31857.74,OPEN VECTOR,Programme Spend (Oracle Projects Control Account)
FCO,FCO,13/11/2018,9865436,31829.8,PICKFORDS MOVE MANAGEMENT LTD,Heavy Baggage
FCO,FCO,06/11/2018,9853084,31768.51,HEALIX INTERNATIONAL LTD,Gp Consultations
FCO,FCO,01/11/2018,9801779,31742,FCO SERVICES,Assets Under Construction (Oracle PA Control Account)
FCO,FCO,06/11/2018,9852832,31691.51,GOVERNMENT COMMUNICATIONS BUREAU ADMIN A/C 6253,Customer Refund Account
FCO,FCO,22/11/2018,9883142,31629.6,WASAFIRI CONSULTING,Programme Spend (Oracle Projects Control Account)
FCO,FCO,06/11/2018,9852866,31198,TEAM LEYLAND INTERNATIONAL LTD,Assets Under Construction (Oracle PA Control Account)
FCO,FCO,12/11/2018,9863266,31178.26,AUTO LAMAC,Assets Under Construction (Oracle PA Control Account)
FCO,FCO,15/11/2018,9870886,31145.68,ALZAD ALLIBI FOR CATERING SERVICES,Estates Management Services
FCO,FCO,12/11/2018,9862168,31105.18,Q PARK LIMITED,Rental Payments - residential
FCO,FCO,12/11/2018,9862170,31105.18,Q PARK LIMITED,Rental Payments - residential
FCO,FCO,20/11/2018,9877760,31099.92,INTERSERVE FM LTD,Construction Project more than 10k
FCO,FCO,08/11/2018,9856925,31087.5,RIDGE AND PARTNERS LLP,Assets Under Construction (Oracle PA Control Account)
FCO,FCO,29/11/2018,9897174,31067.5,NORTH HIGHLAND UK LTD,Specialist Contractors
FCO,FCO,14/11/2018,9867079,31031.81,ALMASSALEH REAL ESTATE,Rental Payments - residential
FCO,FCO,08/11/2018,9857054,31009.55,UTEXAFRICA,Rental Payments - residential
FCO,FCO,08/11/2018,9857063,31009.55,UTEXAFRICA,Rental Payments - residential
FCO,FCO,09/11/2018,9859218,30900,GLOBAL PARTNERS DIGITAL,Programme Spend (Oracle Projects Control Account)
FCO,FCO,20/11/2018,9878278,30790.9,MOZIAC SERVICES LIMITED,IT Management and Change
FCO,FCO,28/11/2018,9894374,30742.52,TORCHLIGHT SOLUTIONS LTD,Programme Spend (Oracle Projects Control Account)
FCO,FCO,20/11/2018,9877771,30727.76,INTERSERVE FM LTD,Construction Project more than 10k
FCO,FCO,23/11/2018,9885169,30576.96,BAE SYSTEMS APPLIED INTELLIGENCE LIMITED,IT Management and Change
FCO,FCO,20/11/2018,9877534,30545.69,ISS FACILITY SERVICES LTD FCO OP - POE,Multiple Accounts
FCO,FCO,20/11/2018,9878440,30527.54,ACCOMMODATION PROVIDER,Recharge Suspense Account (Oracle PA Control Account)
FCO,FCO,07/11/2018,9854482,30378.67,SYNERGY FOR JUSTICE LTD,Programme Spend (Oracle Projects Control Account)
FCO,FCO,06/11/2018,9853049,30335.46,SUSTAINABLE CRIMINAL JUSTICE SOLUTIONS,Recharge Suspense Account (Oracle PA Control Account)
FCO,FCO,30/11/2018,9898774,30317.62,WESTMINSTER FOUNDATION FOR DEMOCRACY,Programme Spend (Oracle Projects Control Account)
FCO,FCO,27/11/2018,9892104,30297.82,TORCHLIGHT SOLUTIONS LTD,Programme Spend (Oracle Projects Control Account)
FCO,FCO,15/11/2018,9870683,30275,WOMENS INITIATIVES FOR GENDER JUSTICE,Programme Spend (Oracle Projects Control Account)
FCO,FCO,15/11/2018,9870835,30215.96,ALBANY ASSOCIATES,Programme Spend (Oracle Projects Control Account)
FCO,FCO,29/11/2018,9897401,30168.88,INTERSERVE FM LTD,Contract Fees
FCO,FCO,21/11/2018,9880624,30086.2,FCO SERVICES,Unaccompanied Air Freight
FCO,FCO,14/11/2018,9868032,30055.34,IIJ INT INST JUSTICE RULE OF LAW,Programme Spend (Oracle Projects Control Account)
FCO,FCO,13/11/2018,9865463,30008.35,HYDROGRAPHIC OFFICE,Programme Spend (Oracle Projects Control Account)
FCO,FCO,14/11/2018,9868114,30000,KINGS COLLEGE LONDON,Training Courses
FCO,FCO,21/11/2018,9880261,29975.9,MINISTERIO DAS FINANCAS AT,Le Staff Pay
FCO,FCO,05/11/2018,9850536,29840.43,KINGDOM CITY,Rental Payments - residential
FCO,FCO,05/11/2018,9850752,29764.35,BELBIZ,Programme Spend (Oracle Projects Control Account)
FCO,FCO,29/11/2018,9897308,29762.72,HOTELLINE FOR TOURISTIC INVESTMENT LTD,Multiple Accounts
FCO,FCO,02/11/2018,9848807,29751,FCO SERVICES,Assets Under Construction (Oracle PA Control Account)
FCO,FCO,15/11/2018,9870777,29674.16,WESTMINSTER FOUNDATION FOR DEMOCRACY,Programme Spend (Oracle Projects Control Account)
FCO,FCO,27/11/2018,9891523,29624.51,ACCOMMODATION PROVIDER,Printing
FCO,FCO,26/11/2018,9887870,29617.09,ANA ELECTRIC LTD,Property Maintenance Overseas Non Residential
FCO,FCO,08/11/2018,9857016,29591.39,MOD MINISTRY OF DEFENCE,Publications
FCO,FCO,29/11/2018,9897199,29553.81,TORCHLIGHT SOLUTIONS LTD,Programme Spend (Oracle Projects Control Account)
FCO,FCO,20/11/2018,9878284,29540,BBC MEDIA ACTION,Programme Spend (Oracle Projects Control Account)
FCO,FCO,08/11/2018,9856816,29495.81,BOWMAN CONSULTING,Assets Under Construction (Oracle PA Control Account)
FCO,FCO,12/11/2018,9862998,29490,SG ELECTRICAL SOLUTIONS,Property Maintenance Overseas Non Residential
FCO,FCO,30/11/2018,9898904,29220.01,SCHOOL,Schooling for Children at Post
FCO,FCO,30/11/2018,9898905,29220.01,SCHOOL,Schooling for Children at Post
FCO,FCO,30/11/2018,9898906,29220.01,SCHOOL,Schooling for Children at Post
FCO,FCO,13/11/2018,9864703,29192.41,WALID ABU NAMEH FOR BUILDING MATERIAL,Programme Spend (Oracle Projects Control Account)
FCO,FCO,19/11/2018,9875450,29171.3,RSM RISK ASSURANCE SERVICES LLP,Specialist Contractors
FCO,FCO,20/11/2018,9877124,29147.56,CONTRIBUTORY PROVIDENT FUND,Le Staff Pay
FCO,FCO,21/11/2018,9881113,29025.95,IKA,Local Staff Pension Contributions
FCO,FCO,02/11/2018,9848914,28992.22,OURISMAN HONDA,Recharge Suspense Account (Oracle PA Control Account)
FCO,FCO,20/11/2018,9878245,28963.02,ACCOMMODATION PROVIDER,Recharge Suspense Account (Oracle PA Control Account)
FCO,FCO,28/11/2018,9894472,28918.54,VODAFONE LTD,Mobile Telephone Equipment
FCO,FCO,13/11/2018,9864668,28804.31,UNMCK,Recharge Suspense Account (Oracle PA Control Account)
FCO,FCO,13/11/2018,9864984,28769.39,ISS FACILITY SERVICES LTD FCO OP,FM Interserve BES Maintenance
FCO,FCO,08/11/2018,9857080,28765.34,UTEXAFRICA,Rental Payments - residential
FCO,FCO,08/11/2018,9857084,28765.34,UTEXAFRICA,Rental Payments - residential
FCO,FCO,07/11/2018,9854557,28761.77,CAPGEMINI UK PLC,IT Management and Change
FCO,FCO,08/11/2018,9856743,28714.11,EUROPEAN MEDICINES AGENCY,Protocol - General VAT Refunds to Other Organisations
FCO,FCO,20/11/2018,9877525,28707.56,ISS FACILITY SERVICES LTD FCO OP - POE,Rental Payments - non residential
FCO,FCO,08/11/2018,9856019,28684.51,ARAB ORIENT INSURANCE COMPANY,LS Staff Medical Costs
FCO,FCO,01/11/2018,9837058,28640.4,BRICKELL BAY TOWER LTD,Rental Payments - non residential
FCO,FCO,27/11/2018,9891740,28555.36,AKTIS STRATEGY,Programme Spend (Oracle Projects Control Account)
FCO,FCO,22/11/2018,9883764,28553.8,SEGURIDAD SOCIAL,Multiple Accounts
FCO,FCO,01/11/2018,9838545,28453.33,BAE SYSTEMS APPLIED INTELLIGENCE LIMITED,Multiple Accounts
FCO,FCO,05/11/2018,9851097,28405.47,SHAPIRO AND DUNCAN INC,Assets Under Construction (Oracle PA Control Account)
FCO,FCO,13/11/2018,9865171,28397.97,HYDROGRAPHIC OFFICE,Programme Spend (Oracle Projects Control Account)
FCO,FCO,07/11/2018,9854723,28291.78,AVARN SECURITY OY,Local Guards
FCO,FCO,20/11/2018,9878620,28291.78,AVARN SECURITY OY,Local Guards
FCO,FCO,05/11/2018,9850862,28193.19,HEALTH POVERTY ACTION,Programme Spend (Oracle Projects Control Account)
FCO,FCO,22/11/2018,9883496,27968.98,FCO SERVICES,Estates Management Services
FCO,FCO,01/11/2018,9846916,27939.39,LARS TORSTEN AHREN,Net Pay (Oracle PAY Control Account)
FCO,FCO,07/11/2018,9854641,27906,HRANT DINK VAKFI,Programme Spend (Oracle Projects Control Account)
FCO,FCO,23/11/2018,9885556,27873.81,SSK,Multiple Accounts
FCO,FCO,23/11/2018,9885715,27827.56,LUCIEDER MARTINS DE MELO LTUR VIAGENS,Programme Spend (Oracle Projects Control Account)
FCO,FCO,21/11/2018,9881034,27786.86,SECURITAS SAC,Local Guards
FCO,FCO,22/11/2018,9883750,27769.96,GLOBAL PARTNERS GOVERNANCE PRACTICE LTD,Programme Spend (Oracle Projects Control Account)
FCO,FCO,06/11/2018,9852340,27754.3,UMOJA HOUSE JMC,Property Maintenance Overseas Non Residential
FCO,FCO,20/11/2018,9878601,27683.39,MODERN CAR,Vehicles Miscellaneous
FCO,FCO,23/11/2018,9885301,27504.53,HARIS ENTERPRISES PVT LTD,Local Guards
FCO,FCO,22/11/2018,9883458,27479.64,HARQUEBUS,Recharge Suspense Account (Oracle PA Control Account)
FCO,FCO,22/11/2018,9882439,27478.64,AUTOCARE VIETNAM CO LTD,Recharge Suspense Account (Oracle PA Control Account)
FCO,FCO,21/11/2018,9880606,27400.18,PROFESSIONAL LANGUAGE SOLUTIONS,Language Tuition: Essential
FCO,FCO,27/11/2018,9892132,27395.83,WIENER GEBIETSKRANKENKASSE,Multiple Accounts
FCO,FCO,12/11/2018,9863142,27360.85,UPR INFO,Programme Spend (Oracle Projects Control Account)
FCO,FCO,26/11/2018,9888025,27341.31,ADAM SMITH INTERNATIONAL,Programme Spend (Oracle Projects Control Account)
FCO,FCO,01/11/2018,9847227,27335,ACTICA CONSULTING LTD,Programme Spend (Oracle Projects Control Account)
FCO,FCO,06/11/2018,9852628,27269.54,HOTEL BEL AZUR,Recharge Suspense Account (Oracle PA Control Account)
FCO,FCO,27/11/2018,9891745,27135.37,PALLADIUM,Programme Spend (Oracle Projects Control Account)
FCO,FCO,01/11/2018,9845330,27117.87,SAWA FOR DEVELOPMENT AND AID,Programme Spend (Oracle Projects Control Account)
FCO,FCO,20/11/2018,9877706,27053.53,INTERSERVE FM LTD,FM Interserve Works
FCO,FCO,21/11/2018,9880014,26977.46,UNHAS SOMALIA,Post - Air Travel
FCO,FCO,13/11/2018,9865449,26958.65,PICKFORDS MOVE MANAGEMENT LTD,Heavy Baggage
FCO,FCO,21/11/2018,9880703,26936.13,WESTMINSTER FOUNDATION FOR DEMOCRACY,Programme Spend (Oracle Projects Control Account)
FCO,FCO,19/11/2018,9875266,26810.51,CAISSE CANTONALE GENEVOISE COMPEN,Local Staff Pension Contributions
FCO,FCO,07/11/2018,9854673,26778.54,THE SECRETARY GENERAL OF THE OSCE,Programme Spend (Oracle Projects Control Account)
FCO,FCO,05/11/2018,9851166,26679.76,OECD,Programme Spend (Oracle Projects Control Account)
FCO,FCO,21/11/2018,9881109,26628.38,IKA,Local Staff Pension Contributions
FCO,FCO,01/11/2018,9847027,26328,FCO SERVICES,Assets Under Construction (Oracle PA Control Account)
FCO,FCO,06/11/2018,9852839,26323,HEALTH EDUCATION ENGLAND,Programme Spend (Oracle Projects Control Account)
FCO,FCO,07/11/2018,9854663,26066.62,GET SAFE ONLINE,Programme Spend (Oracle Projects Control Account)
FCO,FCO,07/11/2018,9854286,26022.39,PHYSICIANS FOR HUMAN RIGHTS INC,Programme Spend (Oracle Projects Control Account)
FCO,FCO,20/11/2018,9877721,26011.77,INTERSERVE FM LTD,Construction Project more than 10k
FCO,FCO,28/11/2018,9894379,25977.5,ACTICA CONSULTING LTD,Programme Spend (Oracle Projects Control Account)
FCO,FCO,09/11/2018,9858437,25934.68,GENESIS,Programme Spend (Oracle Projects Control Account)
FCO,FCO,21/11/2018,9880502,25897.93,KOIZA INTERNATIONAL LTD,"Purchase of Furniture, Fittings and Domestic Appliances"
FCO,FCO,28/11/2018,9894277,25869.06,FCO SERVICES,Assets Under Construction (Oracle PA Control Account)
FCO,FCO,20/11/2018,9877539,25854.59,ISS FACILITY SERVICES LTD FCO OP - POE,Multiple Accounts
FCO,FCO,16/11/2018,9872522,25828.36,INTERSERVE FM LTD,Contract Fees
FCO,FCO,15/11/2018,9870487,25814.01,RIFT VALLEY INSTITUTE,Programme Spend (Oracle Projects Control Account)
FCO,FCO,13/11/2018,9864916,25795.88,TORCHLIGHT SOLUTIONS LTD,Programme Spend (Oracle Projects Control Account)
FCO,FCO,02/11/2018,9849130,25733.28,UBM MEXICO EXPOSICIONES,Programme Spend (Oracle Projects Control Account)
FCO,FCO,15/11/2018,9869535,25698.21,G4S SECURITY SERVICES,Local Guards
FCO,FCO,20/11/2018,9878246,25640,UNDP CONTRIBUTIONS,Programme Spend (Oracle Projects Control Account)
FCO,FCO,09/11/2018,9859115,25602.92,KOIZA INTERNATIONAL LTD,"Purchase of Furniture, Fittings and Domestic Appliances"
FCO,FCO,21/11/2018,9880682,25555.53,FCO SERVICES,Construction Project more than 10k
FCO,FCO,08/11/2018,9856810,25484.25,SCHOOL,Recharge Suspense Account (Oracle PA Control Account)
FCO,FCO,12/11/2018,9863020,25446.71,MARSH UK LTD,Programme Spend (Oracle Projects Control Account)
FCO,FCO,29/11/2018,9897241,25443.84,HAYS SPECIALIST RECRUITMENT LTD,Programme Spend (Oracle Projects Control Account)
FCO,FCO,07/11/2018,9854510,25287.28,DX NETWORK SERVICES,Postal Services
FCO,FCO,26/11/2018,9888336,25238.48,COMPUTACENTER UK LTD,Assets Under Construction (Oracle PA Control Account)
FCO,FCO,01/11/2018,9792431,25226.25,"CROSS MATCH TECHNOLOGIES, INC.",Programme Spend (Oracle Projects Control Account)
FCO,FCO,14/11/2018,9867479,25207.6,SYNERGY SERVE SOLUTIONS CONSULTING,Recharge Suspense Account (Oracle PA Control Account)
FCO,FCO,26/11/2018,9887949,25196,MACE INTERNATIONAL UK LIMITED,Assets Under Construction (Oracle PA Control Account)
FCO,FCO,20/11/2018,9877404,25185.43,TRANS JORDAN TRADING Co,Assets Under Construction (Oracle PA Control Account)
FCO,FCO,20/11/2018,9878331,25135.43,CELLEBRITE MOBILE SYNCHRONIZATION LTD,Recharge Suspense Account (Oracle PA Control Account)
FCO,FCO,07/11/2018,9854913,25050.76,SMITHS ICT AND SECURITY SERVICES,Programme Spend (Oracle Projects Control Account)
FCO,FCO,22/11/2018,9883399,25026.06,BAE SYSTEMS APPLIED INTELLIGENCE LIMITED,IT Management and Change
FCO,FCO,01/11/2018,9825543,-26146,GENESIS,Programme Spend (Oracle Projects Control Account)
FCO,FCO,01/11/2018,9844206,-28688.52,IMMOTEX SA,Rental Payments - residential
FCO,FCO,01/11/2018,9844207,-28688.52,IMMOTEX SA,Rental Payments - residential
FCO,FCO,26/11/2018,9888323,-29506.52,BRICKELL BAY TOWER LTD,Rental Payments - non residential
FCO,FCO,07/11/2018,9854683,-29750,MOZIAC SERVICES LIMITED,IT Management and Change
FCO,FCO,01/11/2018,9844198,-30926.73,IMMOTEX SA,Rental Payments - residential
FCO,FCO,01/11/2018,9844201,-30926.73,IMMOTEX SA,Rental Payments - residential
FCO,FCO,05/11/2018,9851200,-32000,MINISTRY OF DEFENCE,Programme Spend (Oracle Projects Control Account)
FCO,FCO,20/11/2018,9877883,-33656.06,ISS FACILITY SERVICES LTD FCO OP - POE,Multiple Accounts
FCO,FCO,01/11/2018,9847038,-34535,FCO SERVICES,Assets Under Construction (Oracle PA Control Account)
FCO,FCO,01/11/2018,9844193,-34935.76,IMMOTEX SA,Rental Payments - residential
FCO,FCO,01/11/2018,9844194,-34935.76,IMMOTEX SA,Rental Payments - residential
FCO,FCO,12/11/2018,9863007,-38623.51,MICROSOFT LIMITED,Assets Under Construction (Oracle PA Control Account)
FCO,FCO,01/11/2018,9847042,-39433,FCO SERVICES,Assets Under Construction (Oracle PA Control Account)
FCO,FCO,01/11/2018,9819279,-42971.3,EUROPEAN COUNCIL ON FOREIGN RELATIONS,Programme Spend (Oracle Projects Control Account)
FCO,FCO,07/11/2018,9854277,-47993.09,SDJ OTHER DEBTORS,Proceeds from the Sale of Capitalised Vehicles
FCO,FCO,30/11/2018,9898861,-50502,ATKINS LTD,Estates Management Services
FCO,FCO,28/11/2018,9894519,-59048,HALO PROJECT,Programme Spend (Oracle Projects Control Account)
FCO,FCO,28/11/2018,9894517,-62015,HALO PROJECT,Programme Spend (Oracle Projects Control Account)
FCO,FCO,12/11/2018,9813028,-62588.8,COUNCIL OF EUROPE,Programme Spend (Oracle Projects Control Account)
FCO,FCO,08/11/2018,9855960,-62838.74,BKM OTHER DEBTORS,Programme Spend (Oracle Projects Control Account)
FCO,FCO,19/11/2018,9875877,-72036,FCO SERVICES,Assets Under Construction (Oracle PA Control Account)
FCO,FCO,16/11/2018,9873006,-72123.21,CAO OTHER DEBTORS,Rent and Service Charges
FCO,FCO,08/11/2018,9856935,-93084,DEFENCE BUSINESS SERVICES FINANCE,Misc Security Payments
FCO,FCO,20/11/2018,9878210,-112614.48,BAE SYSTEMS APPLIED INTELLIGENCE LIMITED,IT Management and Change
FCO,FCO,16/11/2018,9873005,-160152.55,CAO OTHER DEBTORS,Rent and Service Charges
FCO,FCO,09/11/2018,9859217,-162598.41,TRESOR PUBLIC,Other Debtors
FCO,FCO,02/11/2018,9848987,-198657.39,CONCEPT BUILDING SERVICES SOUTHERN LTD,Assets Under Construction (Oracle PA Control Account)
FCO,FCO,07/11/2018,9854651,-210861,GREENSHIELDS COWIE + CO LTD,Freight & Customs Clearance Charges
FCO,FCO,01/11/2018,9823006,-258723,COMMONWEALTH SECRETARIAT,Programme Spend (Oracle Projects Control Account)
FCO,FCO,28/11/2018,9894510,-262324,HALO PROJECT,Programme Spend (Oracle Projects Control Account)
FCO,FCO,29/11/2018,9897391,-280645.87,HUB OTHER DEBTORS,Construction Project more than 10k
FCO,FCO,30/11/2018,9898793,-280645.87,HUB OTHER DEBTORS,Construction Project more than 10k
FCO,FCO,30/11/2018,9898841,-383108.43,BAE SYSTEMS APPLIED INTELLIGENCE LIMITED,Information Systems Maintenance DO NOT USE
